{"text_format":"1","workbook":"xlsx","n_sheets":5,"sheets":["Notes","Summary","STP","Orgs","BS"],"not_rendered":{"charts":0,"images":0,"macros":1,"external_links":1,"defined_names":4,"comments":0,"pivot_tables":0},"unopened":[],"bounds":{"document_bytes":16777216,"sheet_cells":100000,"rows_first":2000,"rows_last":500,"rows_between":2000,"halvings":0,"cell_chars":16384,"cell_head_chars":4096},"cells_cut":0,"cells_raw":0,"read":"whole","date_system":"1900"}

{"sheet":"Notes","index":0,"n_rows":2,"n_cols":10,"rows_kept":2,"cut":false,"hidden":false,"merged":[]}
[]
["Outpatients Friends and Family Test (FFT) Data - April 2021",null,null,null,null,null,null,null,null,"  Show data for:"]

{"sheet":"Summary","index":1,"n_rows":10,"n_cols":10,"rows_kept":10,"cut":false,"hidden":false,"merged":[[5,1,6,1],[5,4,5,5],[5,6,5,7],[5,8,5,9]]}
[]
[]
[]
[]
[]
[null,"FFT","Number of organisations submitting","Total responses to date","Responses",null,"Percentage Positive",null,"Percentage Negative"]
[null,null,"2021-04-01","2021-04-01","2021-04-01","2021-03-27","2021-04-01","2021-03-27","2021-04-01","2021-03-27"]
[null,"Total",225,20309159,297011,310945,0.93377349660450282,0.93288202093617845,3.2025749888051284E-2,3.1140555403688756E-2]
[null,"NHS",136,19022477,289675,302863,0.93255199792871324,0.93148057042293053,3.2626219038577715E-2,3.1813063992630335E-2]
[null,"IS",91,1287010,7339,8327,0.98201389835127406,0.98582923021496338,8.3117590952445832E-3,5.7643809295064245E-3]

{"sheet":"STP","index":2,"n_rows":55,"n_cols":12,"rows_kept":55,"cut":false,"hidden":false,"merged":[[7,5,8,5],[7,6,7,11],[4,1,5,1],[4,4,5,4],[7,0,8,0],[7,1,8,1],[7,2,8,2],[7,3,8,3],[7,4,8,4]]}
[]
[]
[]
[]
[]
[]
[]
["STP Code","STP Name","Total Responses","Total Eligible","Percentage Positive","Percentage Negative","Breakdown of Responses"]
[null,null,null,null,null,null,"Very Good","Good","Neither Good nor Poor","Poor","Very Poor","Don't Know"]
[null,"England (including Independent Sector Providers)",297011,4445715,0.93377349660450282,3.2025749888051284E-2,238706,38635,7813,4327,5185,2345]
[null,"England (excluding Independent Sector Providers)",289672,4260534,0.93255129940070147,3.2626556933359106E-2,232319,37815,7752,4293,5158,2335]
[null,"Selection (excluding suppressed data)",{"$f":"SUBTOTAL(9, C13:C56)","v":297011},{"$f":"SUBTOTAL(9, D13:D56)","v":4445715},{"$f":"IFERROR((G12+H12)/C12, \"-\")","v":0.93377349660450282},{"$f":"IFERROR((J12+K12)/C12, \"-\")","v":3.2025749888051284E-2},{"$f":"SUBTOTAL(9, G13:G56)","v":238706},38635,7813,4327,5185,2345]
["QE1","Healthier Lancashire and South Cumbria",5848,137355,0.93536251709986318,2.7188782489740083E-2,4729,741,171,87,72,48]
["QF7","South Yorkshire and Bassetlaw STP",7940,199734,0.92329974811083126,3.5768261964735516E-2,6372,959,269,137,147,56]
["QGH","Herefordshire and Worcestershire STP",4281,43154,0.94347115160009343,2.3592618547068442E-2,3494,545,112,44,57,29]
["QH8","Mid and South Essex STP",6269,27987,0.9114691338331472,3.86026479502313E-2,4722,992,209,117,125,104]
["QHG","Bedfordshire, Luton and Milton Keynes STP",560,46922,0.92678571428571432,3.0357142857142857E-2,392,127,18,6,11,6]
["QHL","Birmingham and Solihull STP",510,136829,0.94509803921568625,2.5490196078431372E-2,382,100,10,4,9,5]
["QHM","Cumbria and North East STP",2665,214648,0.97373358348968109,1.2382739212007506E-2,2281,314,29,19,14,8]
["QJ2","Joined Up Care Derbyshire STP",6793,73142,0.95156779037244221,2.2081554541439716E-2,5592,872,167,82,68,12]
["QJG","Suffolk and North East Essex STP",4687,60416,0.94047365052272247,2.8589716236398548E-2,3740,668,96,60,74,49]
["QJK","Devon STP",4142,67155,0.99613713182037666,7.2428778367938191E-4,4045,81,12,2,1,1]
["QJM","Lincolnshire STP",3430,41027,0.91516034985422745,3.5568513119533525E-2,2574,565,118,53,69,51]
["QK1","Leicester, Leicestershire and Rutland STP",9445,63193,0.94600317628374797,2.5622022233986234E-2,7875,1060,237,90,152,31]
["QKK","Our Healthier South East London STP",14312,199333,0.90588317495807713,4.8560648406931244E-2,10478,2487,539,316,379,113]
["QKS","Kent and Medway STP",18522,112651,0.89083252348558473,6.0576611597019762E-2,13995,2505,712,447,675,188]
["QM7","Hertfordshire and West Essex STP",1416,75354,0.97598870056497178,7.7683615819209044E-3,1083,299,16,8,3,7]
["QMF","East London Health & Care Partnership (STP)",4032,176471,0.86582341269841268,7.0188492063492064E-2,2897,594,145,92,191,113]
["QMJ","North London Partners in Health & Care (STP)",21747,174342,0.92840391778176301,3.1728514277831424E-2,16947,3243,562,297,393,305]
["QMM","Norfolk and Waveney Health & Care Partnership (STP)",3404,78462,0.96562867215041126,1.5276145710928319E-2,2944,343,55,30,22,10]
["QNC","Staffordshire & Stoke on Trent STP",690,48113,0.9869565217391304,2.8985507246376812E-3,610,71,7,2,0,0]
["QNQ","Frimley Health & Care (STP)",1000,41313,0.97699999999999998,8.9999999999999993E-3,812,165,12,4,5,2]
["QNX","Sussex Health and Care Partnership STP",1458,39613,0.94787379972565156,1.9890260631001373E-2,1170,212,37,17,12,10]
["QOC","Shropshire and Telford and Wrekin STP",6483,33462,0.9929045195125713,1.8509949097639982E-3,6173,264,31,7,5,3]
["QOP","Greater Manchester Health & Social Care Partnership",17707,324630,0.9300841475122833,3.5466199807985543E-2,14062,2407,451,250,378,159]
["QOQ","Humber, Coast and Vale STP",3831,75845,0.94283476898981988,2.2970503784912555E-2,3025,587,114,43,45,17]
["QOX","Bath and North East Somerset, Swindon and Wiltshire STP",173,66307,0.98265895953757221,5.7803468208092483E-3,164,6,0,0,1,2]
["QPM","Northamptonshire STP",2507,57502,0.95013960909453532,2.0741922616673316E-2,2075,307,59,33,19,14]
["QR1","Gloucestershire STP",5568,45709,0.94378591954022983,2.8196839080459769E-2,4431,824,130,90,67,26]
["QRL","Hampshire and the Isle of Wight STP",6508,141140,0.94068838352796558,2.8426551936078671E-2,5358,764,170,90,95,31]
["QRV","North West London Health & Care Partnership (STP)",13903,221754,0.90814932029058482,4.8406818672229013E-2,10412,2214,463,287,386,141]
["QSL","Somerset STP",110,11194,1,0,109,1,0,0,0,0]
["QT1","Nottingham and Nottinghamshire Health and Care STP",3555,73482,0.94092827004219415,3.1223628691983123E-2,2911,434,87,56,55,12]
["QT6","Cornwall and the Isles of Scilly Health & Social Care Partnership (STP)",1213,33945,0.95630667765869748,1.9785655399835119E-2,1000,160,24,12,12,5]
["QU9","Buckinghamshire, Oxfordshire and Berkshire West STP",11413,130367,0.94322264084815566,2.4445807412599666E-2,9335,1430,313,150,129,56]
["QUA","The Black Country and West Birmingham STP",16711,142034,0.92142899886302432,3.4587995930824011E-2,13008,2390,493,267,311,242]
["QUE","Cambridgeshire and Peterborough STP",10189,95056,0.966728825203651,1.4721758759446462E-2,8913,937,166,88,62,23]
["QUY","Bristol, North Somerset and South Gloucestershire STP",7124,74468,0.94581695676586186,2.4845592363840541E-2,5868,870,155,98,79,54]
["QVV","Dorset STP",1867,13568,0.93090519550080342,2.1960364220674881E-2,1464,274,49,23,18,39]
["QWE","South West London Health & Care Partnership (STP)",10852,133591,0.91605234058238116,4.5705860670844083E-2,8260,1681,340,234,262,75]
["QWO","West Yorkshire and Harrogate Health & Care Partnership (STP)",7383,190745,0.9395909521874577,2.8985507246376812E-2,6009,928,181,96,118,51]
["QWU","Coventry and Warwickshire STP",2020,57679,0.90990099009900993,4.4554455445544552E-2,1575,263,74,31,59,18]
["QXU","Surrey Heartlands Health & Care Partnership (STP)",2731,45455,0.92676675210545589,3.625045770779934E-2,2169,362,86,60,39,15]
["QYG","Cheshire and Merseyside STP",34673,235387,0.94116459492977245,2.8927407492861882E-2,28864,3769,833,464,539,204]
["IS1","Independent Sector Providers",7339,185181,0.98201389835127406,8.3117590952445832E-3,6387,820,61,34,27,10]

{"sheet":"Orgs","index":3,"n_rows":237,"n_cols":21,"rows_kept":237,"cut":false,"hidden":false,"merged":[[7,17,8,17],[7,18,8,18],[4,1,5,2],[6,13,6,20],[7,0,8,0],[7,1,8,1],[7,2,8,2],[7,3,8,3],[7,4,8,4],[7,5,8,5],[7,6,8,6],[7,7,7,12],[7,19,8,19],[7,20,8,20],[7,13,8,13],[7,14,8,14],[7,15,8,15],[7,16,8,16]]}
[]
[]
[]
[]
[null,null,null,null,null,null,null,"  "]
[null,null,null,null,null,null,null,"  "]
[null,null,null,null,null,null,null,null,null,null,null,null,null,"Response Mode"]
["STP Code","Org Code","Org Name","Total Responses","Total Eligible","Percentage Positive","Percentage Negative","Breakdown of Responses",null,null,null,null,null,"Mode SMS","Mode Electronic At Appointment","Mode Electronic After Appointment","Mode Paper At Appointment","Mode Paper After Appointment","Mode Telephone","Mode Online","Mode Other"]
[null,null,null,null,null,null,null,"Very Good","Good","Neither Good nor Poor","Poor","Very Poor","Don't Know"]
[null,null,"England (including Independent Sector Providers)",297011,4445715,0.93377349660450282,3.2025749888051284E-2,238706,38635,7813,4327,5185,2345,185808,7147,2068,36354,3510,38692,22301,{"$f":"SUM('[1]Collection Mode'!O:O)","v":1131}]
[null,null,"England (excluding Independent Sector Providers)",289672,4260534,0.93255129940070147,3.2626556933359106E-2,232319,37815,7752,4293,5158,2335,185427,5264,870,34337,3165,38692,20789,1131]
[null,null,"Selection (excluding suppressed data)",{"$f":"SUBTOTAL(9, D13:D10000)","v":297011},{"$f":"SUBTOTAL(9, E13:E10000)","v":4445715},{"$f":"IFERROR((H12+I12)/D12, \"-\")","v":0.93356475012709972},{"$f":"IFERROR((K12+L12)/D12, \"-\")","v":3.2022383009383489E-2},{"$f":"SUBTOTAL(9, H13:H10000)","v":238647},{"$f":"SUBTOTAL(9, I13:I10000)","v":38632},7813,4327,5184,2345,185808,7147,2068,36295,3510,38692,22297,1131]
["QE1","RXL","BLACKPOOL TEACHING HOSPITALS NHS FOUNDATION TRUST",552,30454,0.95652173913043481,1.0869565217391304E-2,455,73,13,3,3,5,0,0,0,540,0,0,12,0]
["QE1","RXR","EAST LANCASHIRE HOSPITALS NHS TRUST",776,40919,0.93814432989690721,2.9639175257731958E-2,626,102,14,10,13,11,503,0,0,224,0,0,49,0]
["QE1","RXN","LANCASHIRE TEACHING HOSPITALS NHS FOUNDATION TRUST",1459,42505,0.91158327621658675,4.6607265250171351E-2,1095,235,55,43,25,6,1450,0,0,0,0,0,9,0]
["QE1","RTX","UNIVERSITY HOSPITALS OF MORECAMBE BAY NHS FOUNDATION TRUST",3061,23477,0.94217575955570076,2.0254818686703691E-2,2553,331,89,31,31,26,2291,0,0,0,0,766,4,0]
["QF7","RFF","BARNSLEY HOSPITAL NHS FOUNDATION TRUST",86,29727,0.94186046511627908,0,68,13,2,0,0,3,0,86,0,0,0,0,0,0]
["QF7","RP5","DONCASTER AND BASSETLAW TEACHING HOSPITALS NHS FOUNDATION TRUST",52,41287,0.96153846153846156,3.8461538461538464E-2,50,0,0,0,2,0,0,0,0,48,0,0,4,0]
["QF7","RCU","SHEFFIELD CHILDREN'S NHS FOUNDATION TRUST",1969,13538,0.87100050787201622,6.9578466226510913E-2,1491,224,98,63,74,19,0,0,0,8,0,1959,2,0]
["QF7","RHQ","SHEFFIELD TEACHING HOSPITALS NHS FOUNDATION TRUST",5579,93123,0.93851944792973652,2.5631833661946584E-2,4529,707,166,73,70,34,4493,0,0,0,0,883,203,0]
["QF7","RFR","THE ROTHERHAM NHS FOUNDATION TRUST",254,22059,0.98031496062992129,7.874015748031496E-3,234,15,3,1,1,0,0,0,0,248,0,0,6,0]
["QGH","RWP","WORCESTERSHIRE ACUTE HOSPITALS NHS TRUST",4281,28946,0.94347115160009343,2.3592618547068442E-2,3494,545,112,44,57,29,4281,0,0,0,0,0,0,0]
["QGH","RLQ","WYE VALLEY NHS TRUST",0,14208,"NA","NA",0,0,0,0,0,0,0,0,0,0,0,0,0,0]
["QH8","RAJ","MID AND SOUTH ESSEX NHS FOUNDATION TRUST",6269,27987,0.9114691338331472,3.86026479502313E-2,4722,992,209,117,125,104,4882,0,0,0,0,1380,7,0]
["QHG","RC9","BEDFORDSHIRE HOSPITALS NHS FOUNDATION TRUST",399,29118,0.89974937343358397,4.0100250626566414E-2,241,118,18,5,11,6,0,51,0,38,0,0,310,0]
["QHG","RD8","MILTON KEYNES UNIVERSITY HOSPITAL NHS FOUNDATION TRUST",161,17804,0.99378881987577639,6.2111801242236021E-3,151,9,0,1,0,0,0,0,0,139,0,0,22,0]
["QHL","RQ3","BIRMINGHAM WOMEN'S AND CHILDREN'S NHS FOUNDATION TRUST",52,28072,0.92307692307692313,1.9230769230769232E-2,40,8,3,0,1,0,0,0,4,0,0,0,48,0]
["QHL","RRK","UNIVERSITY HOSPITALS BIRMINGHAM NHS FOUNDATION TRUST",458,108757,0.94759825327510916,2.6200873362445413E-2,342,92,7,4,8,5,0,0,0,0,458,0,0,0]
["QHM","RXP","COUNTY DURHAM AND DARLINGTON NHS FOUNDATION TRUST",30,30650,1,0,"*","*","*","*","*","*","*","*","*","*","*","*","*","*"]
["QHM","RR7","GATESHEAD HEALTH NHS FOUNDATION TRUST",2,12216,"*","*","*","*","*","*","*","*","*","*","*","*","*","*","*","*"]
["QHM","RNN","NORTH CUMBRIA INTEGRATED CARE NHS FOUNDATION TRUST",134,400,0.9925373134328358,0,125,8,0,0,0,1,1,0,0,107,0,0,26,0]
["QHM","RVW","NORTH TEES AND HARTLEPOOL NHS FOUNDATION TRUST",738,9852,0.95663956639566394,1.7615176151761516E-2,615,91,17,6,7,2,691,0,0,47,0,0,0,0]
["QHM","RTF","NORTHUMBRIA HEALTHCARE NHS FOUNDATION TRUST",224,32614,0.9821428571428571,4.464285714285714E-3,191,29,1,0,1,2,224,0,0,0,0,0,0,0]
["QHM","RTR","SOUTH TEES HOSPITALS NHS FOUNDATION TRUST",413,41641,0.9733656174334141,1.9370460048426151E-2,360,42,3,7,1,0,389,0,16,0,1,0,7,0]
["QHM","R0B","SOUTH TYNESIDE AND SUNDERLAND NHS FOUNDATION TRUST",162,"NA",0.99382716049382713,0,150,11,0,0,0,1,0,0,0,0,162,0,0,0]
["QHM","RTD","THE NEWCASTLE UPON TYNE HOSPITALS NHS FOUNDATION TRUST",962,87275,0.9781704781704782,1.1434511434511435E-2,808,133,8,6,5,2,0,0,0,960,0,0,2,0]
["QJ2","RFS","CHESTERFIELD ROYAL HOSPITAL NHS FOUNDATION TRUST",921,24039,0.90879478827361559,4.3431053203040172E-2,702,135,40,20,20,4,860,19,0,7,0,0,35,0]
["QJ2","RTG","UNIVERSITY HOSPITALS OF DERBY AND BURTON NHS FOUNDATION TRUST",5872,49103,0.95827656675749318,1.8732970027247955E-2,4890,737,127,62,48,8,3505,2199,0,12,0,0,156,0]
["QJG","RDE","EAST SUFFOLK AND NORTH ESSEX NHS FOUNDATION TRUST",4284,37301,0.93930905695611577,3.034547152194211E-2,3437,587,93,58,72,37,3017,0,0,19,0,1192,56,0]
["QJG","Q1S8W","NEWMEDICA - BURY ST EDMUNDS",0,"NA","NA","NA",0,0,0,0,0,0,0,0,0,0,0,0,0,0]
["QJG","RGR","WEST SUFFOLK NHS FOUNDATION TRUST",403,23115,0.95285359801488834,9.9255583126550868E-3,303,81,3,2,2,12,0,0,0,276,0,0,127,0]
["QJK","RBZ","NORTHERN DEVON HEALTHCARE NHS TRUST",266,10569,0.96616541353383456,7.5187969924812026E-3,234,23,7,1,1,0,0,0,0,150,0,0,116,0]
["QJK","RH8","ROYAL DEVON AND EXETER NHS FOUNDATION TRUST",0,28467,"NA","NA",0,0,0,0,0,0,0,0,0,0,0,0,0,0]
["QJK","RK9","UNIVERSITY HOSPITALS PLYMOUTH NHS TRUST",3876,28119,0.99819401444788447,2.5799793601651185E-4,3811,58,5,1,0,1,0,8,0,3866,0,0,2,0]
["QJM","RWD","UNITED LINCOLNSHIRE HOSPITALS NHS TRUST",3430,41027,0.91516034985422745,3.5568513119533525E-2,2574,565,118,53,69,51,1400,0,0,0,0,1734,296,0]
["QK1","RWE","UNIVERSITY HOSPITALS OF LEICESTER NHS TRUST",9445,63193,0.94600317628374797,2.5622022233986234E-2,7875,1060,237,90,152,31,8387,632,0,426,0,0,0,0]
["QKK","RJ1","GUY'S AND ST THOMAS' NHS FOUNDATION TRUST",4992,77764,0.91085737179487181,4.026442307692308E-2,3824,723,164,80,121,80,3820,149,0,333,0,272,418,0]
["QKK","RJZ","KING'S COLLEGE HOSPITAL NHS FOUNDATION TRUST",4855,75491,0.88774459320288368,6.096807415036045E-2,3400,910,223,144,152,26,4743,0,0,0,86,0,26,0]
["QKK","RJ2","LEWISHAM AND GREENWICH NHS TRUST",4465,46078,0.92004479283314666,4.4344904815229562E-2,3254,854,152,92,106,7,3861,0,0,0,379,0,225,0]
["QKS","RN7","DARTFORD AND GRAVESHAM NHS TRUST",515,15829,0.94563106796116503,1.7475728155339806E-2,419,68,18,3,6,1,0,450,0,57,0,0,8,0]
["QKS","RVV","EAST KENT HOSPITALS UNIVERSITY NHS FOUNDATION TRUST",8302,36069,0.93483497952300654,3.3847265719103833E-2,6605,1156,260,134,147,0,8302,0,0,0,0,0,0,0]
["QKS","RWF","MAIDSTONE AND TUNBRIDGE WELLS NHS TRUST",7234,36262,0.8345313795963506,9.8147636162565666E-2,5145,892,332,263,447,155,0,0,0,40,0,6638,556,0]
["QKS","RPA","MEDWAY NHS FOUNDATION TRUST",2471,24491,0.89639821934439501,4.9372723593686767E-2,1826,389,102,47,75,32,1828,0,0,0,0,643,0,0]
["QM7","RWH","EAST AND NORTH HERTFORDSHIRE NHS TRUST",564,31801,0.95744680851063835,1.4184397163120567E-2,430,110,9,6,2,7,0,13,0,528,0,0,23,0]
["QM7","RQW","THE PRINCESS ALEXANDRA HOSPITAL NHS TRUST",295,19035,1,0,207,88,0,0,0,0,0,0,0,0,0,0,0,295]
["QM7","RWG","WEST HERTFORDSHIRE HOSPITALS NHS TRUST",557,24518,0.98204667863554762,5.3859964093357273E-3,446,101,7,2,1,0,0,557,0,0,0,0,0,0]
["QMF","RF4","BARKING, HAVERING AND REDBRIDGE UNIVERSITY HOSPITALS NHS TRUST",753,38451,0.9229747675962815,3.851261620185923E-2,639,56,5,1,28,24,0,0,0,743,0,0,10,0]
["QMF","R1H","BARTS HEALTH NHS TRUST",3240,110639,0.85154320987654319,7.8086419753086417E-2,2228,531,139,91,162,89,3101,0,0,122,0,0,17,0]
["QMF","RQX","HOMERTON UNIVERSITY HOSPITAL NHS FOUNDATION TRUST",39,27381,0.94871794871794868,2.564102564102564E-2,30,7,1,0,1,0,0,25,0,8,0,0,6,0]
["QMJ","RP4","GREAT ORMOND STREET HOSPITAL FOR CHILDREN NHS FOUNDATION TRUST",675,15975,0.96592592592592597,1.4814814814814815E-2,594,58,11,7,3,2,0,0,0,626,0,0,49,0]
["QMJ","RP6","MOORFIELDS EYE HOSPITAL NHS FOUNDATION TRUST",14977,41996,0.93703678974427451,2.4437470788542432E-2,11695,2339,354,187,179,223,14977,0,0,0,0,0,0,0]
["QMJ","RAP","NORTH MIDDLESEX UNIVERSITY HOSPITAL NHS TRUST",1724,29118,0.87006960556844548,8.642691415313225E-2,1205,295,63,44,105,12,1355,369,0,0,0,0,0,0]
["QMJ","RRV","UNIVERSITY COLLEGE LONDON HOSPITALS NHS FOUNDATION TRUST",4352,69108,0.91613051470588236,3.7913602941176468E-2,3443,544,134,59,106,66,3284,0,0,0,0,1068,0,0]
["QMJ","RKE","WHITTINGTON HEALTH NHS TRUST",19,18145,0.89473684210526316,0,10,7,0,0,0,2,0,0,0,19,0,0,0,0]
["QMM","RGP","JAMES PAGET UNIVERSITY HOSPITALS NHS FOUNDATION TRUST",531,17651,0.98305084745762716,5.6497175141242938E-3,492,30,6,2,1,0,0,0,0,531,0,0,0,0]
["QMM","RM1","NORFOLK AND NORWICH UNIVERSITY HOSPITALS NHS FOUNDATION TRUST",1259,40887,0.97458300238284357,1.1119936457505957E-2,1068,159,12,10,4,6,0,0,747,0,0,0,512,0]
["QMM","RCX","THE QUEEN ELIZABETH HOSPITAL, KING'S LYNN, NHS FOUNDATION TRUST",1614,19924,0.95291201982651796,2.1685254027261461E-2,1384,154,37,18,17,4,0,0,0,637,0,0,977,0]
["QNC","RRE","MIDLANDS PARTNERSHIP NHS FOUNDATION TRUST",5,2115,1,0,5,0,0,0,0,0,0,0,0,0,0,0,5,0]
["QNC","RJE","UNIVERSITY HOSPITALS OF NORTH MIDLANDS NHS TRUST",685,45998,0.98686131386861309,2.9197080291970801E-3,605,71,7,2,0,0,14,5,0,658,0,0,8,0]
["QNQ","RDU","FRIMLEY HEALTH NHS FOUNDATION TRUST",1000,41313,0.97699999999999998,8.9999999999999993E-3,812,165,12,4,5,2,96,0,0,904,0,0,0,0]
["QNX","RXC","EAST SUSSEX HEALTHCARE NHS TRUST",96,24612,0.96875,1.0416666666666666E-2,85,8,1,0,1,1,0,0,0,96,0,0,0,0]
["QNX","RPC","QUEEN VICTORIA HOSPITAL NHS FOUNDATION TRUST",1362,15001,0.94640234948604995,2.0558002936857563E-2,1085,204,36,17,11,9,557,0,0,33,0,772,0,0]
["QOC","RL1","THE ROBERT JONES AND AGNES HUNT ORTHOPAEDIC HOSPITAL NHS FOUNDATION TRUST",964,6671,0.975103734439834,5.1867219917012446E-3,853,87,18,3,2,1,964,0,0,0,0,0,0,0]
["QOC","RXW","THE SHREWSBURY AND TELFORD HOSPITAL NHS TRUST",5519,26791,0.99601377061061791,1.2683457148034065E-3,5320,177,13,4,3,2,0,0,0,5519,0,0,0,0]
["QOP","RMC","BOLTON NHS FOUNDATION TRUST",2353,20678,0.92520186995325115,3.4424139396515084E-2,1890,287,77,36,45,18,1897,0,0,81,0,375,0,0]
["QOP","R0A","MANCHESTER UNIVERSITY NHS FOUNDATION TRUST",5791,109713,0.95493006389224655,2.3657399412882057E-2,4660,870,94,57,80,30,994,457,0,3473,0,31,0,836]
["QOP","RW6","PENNINE ACUTE HOSPITALS NHS TRUST",3242,53632,0.88278840222085131,5.7063541024059222E-2,2322,540,130,70,115,65,1882,0,0,0,0,1360,0,0]
["QOP","RM3","SALFORD ROYAL NHS FOUNDATION TRUST",1835,45542,0.93242506811989101,4.4686648501362398E-2,1520,191,34,23,59,8,1532,0,0,0,0,303,0,0]
["QOP","RWJ","STOCKPORT NHS FOUNDATION TRUST",687,23554,0.93740902474526933,2.6200873362445413E-2,538,106,18,7,11,7,521,0,0,1,0,165,0,0]
["QOP","RMP","TAMESIDE AND GLOSSOP INTEGRATED CARE NHS FOUNDATION TRUST",1105,14683,0.90226244343891404,6.4253393665158365E-2,875,122,33,28,43,4,1095,10,0,0,0,0,0,0]
["QOP","RBV","THE CHRISTIE NHS FOUNDATION TRUST",1855,29631,0.94878706199460916,1.4016172506738544E-2,1577,183,46,14,12,23,1855,0,0,0,0,0,0,0]
["QOP","RRF","WRIGHTINGTON, WIGAN AND LEIGH NHS FOUNDATION TRUST",839,27197,0.93921334922526822,3.3373063170441003E-2,680,108,19,15,13,4,594,0,0,0,0,245,0,0]
["QOQ","RCD","HARROGATE AND DISTRICT NHS FOUNDATION TRUST",2136,15172,0.94616104868913853,1.7322097378277154E-2,1655,366,66,18,19,12,0,0,0,0,0,2136,0,0]
["QOQ","RJL","NORTHERN LINCOLNSHIRE AND GOOLE NHS FOUNDATION TRUST",42,29908,0.9285714285714286,7.1428571428571425E-2,39,0,0,1,2,0,0,0,0,42,0,0,0,0]
["QOQ","RCB","YORK TEACHING HOSPITAL NHS FOUNDATION TRUST",1653,30765,0.93889897156684821,2.9038112522686024E-2,1331,221,48,24,24,5,1482,0,0,171,0,0,0,0]
["QOX","RN3","GREAT WESTERN HOSPITALS NHS FOUNDATION TRUST",0,21113,"NA","NA",0,0,0,0,0,0,0,0,0,0,0,0,0,0]
["QOX","RD1","ROYAL UNITED HOSPITALS BATH NHS FOUNDATION TRUST",102,31733,0.99019607843137258,0,97,4,0,0,0,1,0,0,0,94,0,0,8,0]
["QOX","RNZ","SALISBURY NHS FOUNDATION TRUST",71,13461,0.971830985915493,1.4084507042253521E-2,67,2,0,0,1,1,0,0,0,71,0,0,0,0]
["QPM","RNQ","KETTERING GENERAL HOSPITAL NHS FOUNDATION TRUST",17,23674,0.88235294117647056,5.8823529411764705E-2,14,1,0,0,1,1,0,0,0,0,0,0,17,0]
["QPM","RNS","NORTHAMPTON GENERAL HOSPITAL NHS TRUST",2490,33828,0.95060240963855425,2.0481927710843374E-2,2061,306,59,33,18,13,1109,0,0,0,0,357,1024,0]
["QR1","RTE","GLOUCESTERSHIRE HOSPITALS NHS FOUNDATION TRUST",5568,45709,0.94378591954022983,2.8196839080459769E-2,4431,824,130,90,67,26,4786,0,0,0,0,777,5,0]
["QRL","RN5","HAMPSHIRE HOSPITALS NHS FOUNDATION TRUST",1422,31742,0.94514767932489452,2.1097046413502109E-2,1173,171,39,20,10,9,382,0,0,674,0,322,44,0]
["QRL","R1F","ISLE OF WIGHT NHS TRUST",293,11546,0.98293515358361772,3.4129692832764505E-3,262,26,4,0,1,0,0,0,0,293,0,0,0,0]
["QRL","RHU","PORTSMOUTH HOSPITALS UNIVERSITY NATIONAL HEALTH SERVICE TRUST",3900,47392,0.92948717948717952,3.6153846153846154E-2,3190,435,113,66,75,21,3900,0,0,0,0,0,0,0]
["QRL","RHM","UNIVERSITY HOSPITAL SOUTHAMPTON NHS FOUNDATION TRUST",893,50460,0.96864501679731241,1.4557670772676373E-2,733,132,14,4,9,1,0,1,0,406,0,0,486,0]
["QRV","RQM","CHELSEA AND WESTMINSTER HOSPITAL NHS FOUNDATION TRUST",4967,50804,0.8876585464062815,6.2411918663176968E-2,3641,768,205,137,173,43,4178,0,0,0,0,308,481,0]
["QRV","RYJ","IMPERIAL COLLEGE HEALTHCARE NHS TRUST",3803,77893,0.93215882198264532,3.9442545358927161E-2,2991,554,97,75,75,11,0,78,0,21,0,0,3704,0]
["QRV","R1K","LONDON NORTH WEST UNIVERSITY HEALTHCARE NHS TRUST",1856,39878,0.91918103448275867,3.3943965517241381E-2,1496,210,14,3,60,73,0,0,0,1812,0,0,44,0]
["QRV","RT3","ROYAL BROMPTON & HAREFIELD NHS FOUNDATION TRUST",125,11376,0.86399999999999999,9.6000000000000002E-2,85,23,2,7,5,3,0,0,0,0,0,0,125,0]
["QRV","RAN","ROYAL NATIONAL ORTHOPAEDIC HOSPITAL NHS TRUST",790,3309,0.90126582278481016,4.6835443037974683E-2,592,120,41,23,14,0,0,9,0,0,0,0,781,0]
["QRV","RAS","THE HILLINGDON HOSPITALS NHS FOUNDATION TRUST",2155,21219,0.90255220417633408,4.6403712296983757E-2,1419,526,103,42,58,7,0,0,3,14,0,0,2138,0]
["QRV","RPY","THE ROYAL MARSDEN NHS FOUNDATION TRUST",207,17275,0.97101449275362317,4.830917874396135E-3,188,13,1,0,1,4,0,0,0,0,207,0,0,0]
["QSL","RH5","SOMERSET NHS FOUNDATION TRUST",75,641,1,0,74,1,0,0,0,0,0,0,0,68,0,0,7,0]
["QSL","RA4","YEOVIL DISTRICT HOSPITAL NHS FOUNDATION TRUST",35,10553,1,0,35,0,0,0,0,0,9,1,0,1,24,0,0,0]
["QT1","RX1","NOTTINGHAM UNIVERSITY HOSPITALS NHS TRUST",854,44108,0.97189695550351285,4.6838407494145199E-3,739,91,13,3,1,7,0,0,26,828,0,0,0,0]
["QT1","RK5","SHERWOOD FOREST HOSPITALS NHS FOUNDATION TRUST",2701,29374,0.93113661606812292,3.9614957423176604E-2,2172,343,74,53,54,5,2541,0,0,0,159,0,1,0]
["QT6","REF","ROYAL CORNWALL HOSPITALS NHS TRUST",1213,33945,0.95630667765869748,1.9785655399835119E-2,1000,160,24,12,12,5,289,60,0,0,0,0,864,0]
["QU9","RXQ","BUCKINGHAMSHIRE HEALTHCARE NHS TRUST",4508,24627,0.92280390417036384,3.1499556344276841E-2,3411,749,164,67,75,42,3571,0,0,0,0,937,0,0]
["QU9","RTH","OXFORD UNIVERSITY HOSPITALS NHS FOUNDATION TRUST",5811,62596,0.94837377387712962,2.3575976596110826E-2,4866,645,149,83,54,14,4570,0,0,0,24,0,1217,0]
["QU9","RHW","ROYAL BERKSHIRE NHS FOUNDATION TRUST",1094,43144,1,0,1058,36,0,0,0,0,0,0,0,1093,0,0,1,0]
["QUA","RXK","SANDWELL AND WEST BIRMINGHAM HOSPITALS NHS TRUST",7320,44473,0.91448087431693992,4.3032786885245901E-2,5655,1039,231,143,172,80,5084,0,0,1204,0,1032,0,0]
["QUA","RNA","THE DUDLEY GROUP NHS FOUNDATION TRUST",1044,32251,0.85057471264367812,4.1187739463601533E-2,748,140,26,24,19,87,873,0,0,158,0,0,13,0]
["QUA","RL4","THE ROYAL WOLVERHAMPTON NHS TRUST",6312,48262,0.94439163498098855,2.1070975918884665E-2,5052,909,165,69,64,53,2617,0,0,21,0,3670,4,0]
["QUA","RBK","WALSALL HEALTHCARE NHS TRUST",2035,17048,0.91154791154791159,4.2751842751842753E-2,1553,302,71,31,56,22,1599,19,0,0,0,417,0,0]
["QUE","RGT","CAMBRIDGE UNIVERSITY HOSPITALS NHS FOUNDATION TRUST",7063,44388,0.95794987965453771,1.925527396290528E-2,6096,670,145,80,56,16,7036,0,0,24,0,0,3,0]
["QUE","RGN","NORTH WEST ANGLIA NHS FOUNDATION TRUST",1185,43360,0.9831223628691983,5.0632911392405064E-3,1021,144,9,2,4,5,0,0,0,1184,0,0,1,0]
["QUE","RGM","ROYAL PAPWORTH HOSPITAL NHS FOUNDATION TRUST",1941,7308,0.98866563626996395,4.1215868109222053E-3,1796,123,12,6,2,2,0,0,0,0,0,0,1941,0]
["QUY","RVJ","NORTH BRISTOL NHS TRUST",4645,29480,0.94897739504843914,2.303552206673843E-2,3861,547,97,57,50,33,3242,0,0,0,0,1395,8,0]
["QUY","RA7","UNIVERSITY HOSPITALS BRISTOL AND WESTON NHS FOUNDATION TRUST",2479,44988,0.93989511899959666,2.8237192416296894E-2,2007,323,58,41,29,21,194,0,0,2162,123,0,0,0]
["QVV","RBD","DORSET COUNTY HOSPITAL NHS FOUNDATION TRUST",1606,13568,0.92963885429638859,2.3661270236612703E-2,1255,238,43,21,17,32,1582,0,0,0,0,24,0,0]
["QVV","R0D","UNIVERSITY HOSPITALS DORSET NHS FOUNDATION TRUST",261,"NA",0.93869731800766287,1.1494252873563218E-2,209,36,6,2,1,7,195,0,0,0,66,0,0,0]
["QWE","RJ6","CROYDON HEALTH SERVICES NHS TRUST",3661,29462,0.93062004916689434,3.4416826003824091E-2,2895,512,87,61,65,41,3661,0,0,0,0,0,0,0]
["QWE","RVR","EPSOM AND ST HELIER UNIVERSITY HOSPITALS NHS TRUST",1562,26135,0.92829705505761839,3.713188220230474E-2,1243,207,41,29,29,13,905,18,0,326,0,203,110,0]
["QWE","RAX","KINGSTON HOSPITAL NHS FOUNDATION TRUST",3458,23593,0.91324465008675537,5.2342394447657606E-2,2637,521,108,88,93,11,2982,0,13,0,0,453,10,0]
["QWE","RJ7","ST GEORGE'S UNIVERSITY HOSPITALS NHS FOUNDATION TRUST",2171,54401,0.88714877936434822,6.0340856748042376E-2,1485,441,104,56,75,10,0,41,0,94,0,0,2036,0]
["QWO","RCF","AIREDALE NHS FOUNDATION TRUST",1457,12503,0.93067947838023335,3.4317089910775568E-2,1149,207,44,28,22,7,1457,0,0,0,0,0,0,0]
["QWO","RAE","BRADFORD TEACHING HOSPITALS NHS FOUNDATION TRUST",353,27867,0.99433427762039661,5.6657223796033997E-3,321,30,0,1,1,0,0,0,0,0,353,0,0,0]
["QWO","RWY","CALDERDALE AND HUDDERSFIELD NHS FOUNDATION TRUST",2496,28861,0.92467948717948723,3.6458333333333336E-2,1965,343,71,37,54,26,2439,0,0,0,0,0,57,0]
["QWO","RR8","LEEDS TEACHING HOSPITALS NHS TRUST",2136,83212,0.9353932584269663,2.8089887640449437E-2,1723,275,61,28,32,17,1117,0,55,306,0,639,19,0]
["QWO","RXF","MID YORKSHIRE HOSPITALS NHS TRUST",941,38302,0.98193411264612118,1.1689691817215728E-2,851,73,5,2,9,1,0,0,0,913,0,0,28,0]
["QWU","RJC","SOUTH WARWICKSHIRE NHS FOUNDATION TRUST",455,15621,0.93846153846153846,4.3956043956043959E-2,407,20,3,0,20,5,0,0,0,433,0,0,22,0]
["QWU","RKB","UNIVERSITY HOSPITALS COVENTRY AND WARWICKSHIRE NHS TRUST",1565,42058,0.90159744408945686,4.472843450479233E-2,1168,243,71,31,39,13,1317,0,0,0,0,248,0,0]
["QXU","RA2","ROYAL SURREY COUNTY HOSPITAL NHS FOUNDATION TRUST",1260,22866,0.93492063492063493,2.6190476190476191E-2,1025,153,44,21,12,5,1242,0,0,0,0,18,0,0]
["QXU","RTP","SURREY AND SUSSEX HEALTHCARE NHS TRUST",1471,22589,0.91978246091094495,4.4867437117607073E-2,1144,209,42,39,27,10,1193,0,0,220,0,29,29,0]
["QYG","RBS","ALDER HEY CHILDREN'S NHS FOUNDATION TRUST",1079,14548,0.95273401297497684,3.0583873957367932E-2,902,126,16,19,14,2,758,7,0,0,0,0,314,0]
["QYG","RJR","COUNTESS OF CHESTER HOSPITAL NHS FOUNDATION TRUST",2193,22778,0.93296853625170995,3.875968992248062E-2,1806,240,54,41,44,8,1944,0,0,0,0,249,0,0]
["QYG","RJN","EAST CHESHIRE NHS TRUST",2199,9606,0.94861300591177811,2.1373351523419737E-2,1861,225,58,25,22,8,1444,0,0,0,0,755,0,0]
["QYG","RBQ","LIVERPOOL HEART AND CHEST HOSPITAL NHS FOUNDATION TRUST",0,4186,"NA","NA",0,0,0,0,0,0,0,0,0,0,0,0,0,0]
["QYG","REM","LIVERPOOL UNIVERSITY HOSPITALS NHS FOUNDATION TRUST",8419,22860,0.93847250267252647,3.3495664568238506E-2,7005,896,191,122,160,45,6832,0,0,0,0,1587,0,0]
["QYG","REP","LIVERPOOL WOMEN'S NHS FOUNDATION TRUST",583,10791,0.92109777015437388,5.3173241852487133E-2,467,70,7,17,14,8,0,0,0,0,0,0,583,0]
["QYG","RBT","MID CHESHIRE HOSPITALS NHS FOUNDATION TRUST",2356,19971,0.93803056027164688,2.5891341256366725E-2,1900,310,60,24,37,25,1704,0,6,0,0,646,0,0]
["QYG","RVY","SOUTHPORT AND ORMSKIRK HOSPITAL NHS TRUST",2346,16710,0.94671781756180728,2.514919011082694E-2,1910,311,53,35,24,13,1666,0,0,0,0,680,0,0]
["QYG","RBN","ST HELENS AND KNOWSLEY TEACHING HOSPITALS NHS TRUST",5440,31668,0.93897058823529411,2.7757352941176469E-2,4586,522,153,60,91,28,4474,0,0,49,0,841,76,0]
["QYG","REN","THE CLATTERBRIDGE CANCER CENTRE NHS FOUNDATION TRUST",2212,21976,0.95795660036166363,2.4864376130198915E-2,1969,150,32,28,27,6,2212,0,0,0,0,0,0,0]
["QYG","RET","THE WALTON CENTRE NHS FOUNDATION TRUST",248,9230,0.91129032258064513,5.6451612903225805E-2,192,34,7,3,11,1,0,0,0,0,0,0,248,0]
["QYG","RWW","WARRINGTON AND HALTON TEACHING HOSPITALS NHS FOUNDATION TRUST",3027,24822,0.93458870168483643,2.9402048232573506E-2,2440,389,83,40,49,26,1747,0,0,96,0,1183,1,0]
["QYG","RBL","WIRRAL UNIVERSITY TEACHING HOSPITAL NHS FOUNDATION TRUST",4571,26241,0.94552614307591332,2.1001968934587618E-2,3826,496,119,50,46,34,3448,0,0,0,1123,0,0,0]
["IS1","NYW17","ASPEN HEALTHCARE - MIDLAND EYE",39,267,1,0,39,0,0,0,0,0,0,0,0,39,0,0,0,0]
["IS1","NWF01","BENENDEN HOSPITAL",20,"NA",0.95,0,15,4,1,0,0,0,0,0,0,0,0,0,20,0]
["IS1","NT402","BMI - BATH CLINIC",8,599,1,0,8,0,0,0,0,0,0,0,0,8,0,0,0,0]
["IS1","NT405","BMI - BISHOPS WOOD",30,841,1,0,27,3,0,0,0,0,0,0,0,30,0,0,0,0]
["IS1","NT409","BMI - CHELSFIELD PARK HOSPITAL",0,748,"NA","NA",0,0,0,0,0,0,0,0,0,0,0,0,0,0]
["IS1","NT417","BMI - GORING HALL HOSPITAL",1,1339,"*","*","*","*","*","*","*","*","*","*","*","*","*","*","*","*"]
["IS1","NT416","BMI - HENDON HOSPITAL",0,1241,"NA","NA",0,0,0,0,0,0,0,0,0,0,0,0,0,0]
["IS1","NT433","BMI - SARUM ROAD HOSPITAL",0,373,"NA","NA",0,0,0,0,0,0,0,0,0,0,0,0,0,0]
["IS1","NT436","BMI - SHIRLEY OAKS HOSPITAL",6,1849,1,0,6,0,0,0,0,0,0,0,0,6,0,0,0,0]
["IS1","NT401","BMI - THE ALEXANDRA HOSPITAL",0,2894,"NA","NA",0,0,0,0,0,0,0,0,0,0,0,0,0,0]
["IS1","NT403","BMI - THE BEARDWOOD HOSPITAL",0,2371,"NA","NA",0,0,0,0,0,0,0,0,0,0,0,0,0,0]
["IS1","NT404","BMI - THE BEAUMONT HOSPITAL",0,2599,"NA","NA",0,0,0,0,0,0,0,0,0,0,0,0,0,0]
["IS1","NT406","BMI - THE BLACKHEATH HOSPITAL",0,1079,"NA","NA",0,0,0,0,0,0,0,0,0,0,0,0,0,0]
["IS1","NT408","BMI - THE CHAUCER HOSPITAL",0,844,"NA","NA",0,0,0,0,0,0,0,0,0,0,0,0,0,0]
["IS1","NT410","BMI - THE CHILTERN HOSPITAL",45,501,1,0,41,4,0,0,0,0,0,0,0,45,0,0,0,0]
["IS1","NT411","BMI - THE CLEMENTINE CHURCHILL HOSPITAL",0,1945,"NA","NA",0,0,0,0,0,0,0,0,0,0,0,0,0,0]
["IS1","NT412","BMI - THE DROITWICH SPA HOSPITAL",0,1544,"NA","NA",0,0,0,0,0,0,0,0,0,0,0,0,0,0]
["IS1","NT418","BMI - THE HAMPSHIRE CLINIC",0,1289,"NA","NA",0,0,0,0,0,0,0,0,0,0,0,0,0,0]
["IS1","NT419","BMI - THE HARBOUR HOSPITAL",0,160,"NA","NA",0,0,0,0,0,0,0,0,0,0,0,0,0,0]
["IS1","NT420","BMI - THE HIGHFIELD HOSPITAL",9,1332,1,0,9,0,0,0,0,0,0,0,0,9,0,0,0,0]
["IS1","NT421","BMI - THE KINGS OAK HOSPITAL",5,988,1,0,5,0,0,0,0,0,0,0,0,5,0,0,0,0]
["IS1","NT422","BMI - THE LONDON INDEPENDENT HOSPITAL",190,2814,0.99473684210526314,5.263157894736842E-3,156,33,0,1,0,0,0,0,0,190,0,0,0,0]
["IS1","NT423","BMI - THE MANOR HOSPITAL",0,486,"NA","NA",0,0,0,0,0,0,0,0,0,0,0,0,0,0]
["IS1","NT424","BMI - THE MERIDEN HOSPITAL",6,1731,1,0,5,1,0,0,0,0,0,0,0,6,0,0,0,0]
["IS1","NT427","BMI - THE PARK HOSPITAL",0,1044,"NA","NA",0,0,0,0,0,0,0,0,0,0,0,0,0,0]
["IS1","NT428","BMI - THE PRINCESS MARGARET HOSPITAL",4,463,"*","*","*","*","*","*","*","*","*","*","*","*","*","*","*","*"]
["IS1","NT429","BMI - THE PRIORY HOSPITAL",0,997,"NA","NA",0,0,0,0,0,0,0,0,0,0,0,0,0,0]
["IS1","NT430","BMI - THE RIDGEWAY HOSPITAL",31,1028,1,0,31,0,0,0,0,0,0,0,0,31,0,0,0,0]
["IS1","NT431","BMI - THE RUNNYMEDE HOSPITAL",0,157,"NA","NA",0,0,0,0,0,0,0,0,0,0,0,0,0,0]
["IS1","NT432","BMI - THE SANDRINGHAM HOSPITAL",0,707,"NA","NA",0,0,0,0,0,0,0,0,0,0,0,0,0,0]
["IS1","NT434","BMI - THE SAXON CLINIC",0,520,"NA","NA",0,0,0,0,0,0,0,0,0,0,0,0,0,0]
["IS1","NT435","BMI - THE SHELBURNE HOSPITAL",0,77,"NA","NA",0,0,0,0,0,0,0,0,0,0,0,0,0,0]
["IS1","NT437","BMI - THE SLOANE HOSPITAL",11,495,0.90909090909090906,9.0909090909090912E-2,10,0,0,1,0,0,0,0,0,11,0,0,0,0]
["IS1","NT443","BMI - THE WINTERBOURNE HOSPITAL",0,478,"NA","NA",0,0,0,0,0,0,0,0,0,0,0,0,0,0]
["IS1","NT440","BMI - THORNBURY HOSPITAL",1,615,"*","*","*","*","*","*","*","*","*","*","*","*","*","*","*","*"]
["IS1","NT441","BMI - THREE SHIRES HOSPITAL",0,1982,"NA","NA",0,0,0,0,0,0,0,0,0,0,0,0,0,0]
["IS1","NT497","BMI GISBURNE PARK HOSPITAL",0,1277,"NA","NA",0,0,0,0,0,0,0,0,0,0,0,0,0,0]
["IS1","NT455","BMI MOUNT ALVERNIA HOSPITAL",26,1448,1,0,24,2,0,0,0,0,0,0,0,26,0,0,0,0]
["IS1","NT490","BMI SOUTHEND PRIVATE HOSPITAL",0,433,"NA","NA",0,0,0,0,0,0,0,0,0,0,0,0,0,0]
["IS1","NT446","BMI ST EDMUNDS HOSPITAL",0,370,"NA","NA",0,0,0,0,0,0,0,0,0,0,0,0,0,0]
["IS1","NT451","BMI THE CAVELL HOSPITAL",70,934,1,0,64,6,0,0,0,0,0,0,0,70,0,0,0,0]
["IS1","NT447","BMI THE DUCHY HOSPITAL",0,478,"NA","NA",0,0,0,0,0,0,0,0,0,0,0,0,0,0]
["IS1","NT445","BMI THE EDGBASTON HOSPITAL",12,1529,1,0,11,1,0,0,0,0,0,0,0,12,0,0,0,0]
["IS1","NT448","BMI THE HUDDERSFIELD HOSPITAL",11,1620,1,0,11,0,0,0,0,0,0,0,0,11,0,0,0,0]
["IS1","NT449","BMI THE LANCASTER HOSPITAL",1,541,"*","*","*","*","*","*","*","*","*","*","*","*","*","*","*","*"]
["IS1","NT450","BMI THE LINCOLN HOSPITAL",2,732,"*","*","*","*","*","*","*","*","*","*","*","*","*","*","*","*"]
["IS1","NT457","BMI WOODLANDS HOSPITAL",1,2499,"*","*","*","*","*","*","*","*","*","*","*","*","*","*","*","*"]
["IS1","NV302","CIRCLE BATH HOSPITAL",65,1710,0.9538461538461539,1.5384615384615385E-2,57,5,0,1,0,2,0,0,0,65,0,0,0,0]
["IS1","NV323","CIRCLE READING HOSPITAL",103,1809,1,0,97,6,0,0,0,0,0,0,0,103,0,0,0,0]
["IS1","NNE","DORKING HEALTHCARE LIMITED (DHC)",7,2078,1,0,7,0,0,0,0,0,0,0,0,0,7,0,0,0]
["IS1","ACM","EYE CARE MEDICAL LTD",20,"NA",1,0,20,0,0,0,0,0,0,0,0,0,20,0,0,0]
["IS1","NVG01","FAIRFIELD HOSPITAL",29,1777,1,0,26,3,0,0,0,0,0,0,0,29,0,0,0,0]
["IS1","NXM","HORDER HEALTHCARE",63,411,0.98412698412698407,1.5873015873015872E-2,57,5,0,1,0,0,0,0,0,63,0,0,0,0]
["IS1","NV1","INHEALTH LIMITED",668,2933,0.94610778443113774,2.6946107784431138E-2,527,105,17,12,6,1,0,0,0,0,0,0,668,0]
["IS1","NCR","ISIGHT",18,476,1,0,18,0,0,0,0,0,0,0,0,0,18,0,0,0]
["IS1","ADP","KIMS HOSPITAL",22,2845,1,0,22,0,0,0,0,0,0,0,0,0,22,0,0,0]
["IS1","ACG20","NEWMEDICA - BRISTOL - LITFIELD HOUSE",15,"NA",0.93333333333333335,0,13,1,1,0,0,0,0,0,0,15,0,0,0,0]
["IS1","ACG36","NEWMEDICA - EXETER - GLEN HOUSE",1,"NA","*","*","*","*","*","*","*","*","*","*","*","*","*","*","*","*"]
["IS1","ACG41","NEWMEDICA - FROME",2,"NA","*","*","*","*","*","*","*","*","*","*","*","*","*","*","*","*"]
["IS1","L0D9W","NEWMEDICA - GLOUCESTER (BRIGHOUSE COURT)",3,"NA","*","*","*","*","*","*","*","*","*","*","*","*","*","*","*","*"]
["IS1","ACG37","NEWMEDICA - IPSWICH",6,"NA",1,0,6,0,0,0,0,0,0,0,0,3,0,0,3,0]
["IS1","ACG38","NEWMEDICA - LANGFORD",0,"NA","NA","NA",0,0,0,0,0,0,0,0,0,0,0,0,0,0]
["IS1","ACG39","NEWMEDICA - SWINDON",6,"NA",1,0,5,1,0,0,0,0,0,0,0,4,0,0,2,0]
["IS1","ACG24","NEWMEDICA - TEESSIDE - NORTH ORMESBY",1,"NA","*","*","*","*","*","*","*","*","*","*","*","*","*","*","*","*"]
["IS1","ACG40","NEWMEDICA - WAKEFIELD",4,"NA","*","*","*","*","*","*","*","*","*","*","*","*","*","*","*","*"]
["IS1","ACG35","NEWMEDICA - WINTERTON",0,"NA","NA","NA",0,0,0,0,0,0,0,0,0,0,0,0,0,0]
["IS1","ACG30","NEWMEDICA - WORKSOP - DUKERIES",5,"NA",1,0,5,0,0,0,0,0,0,0,0,5,0,0,0,0]
["IS1","ACG13","NEWMEDICA COMMUNITY OPHTHALMOLOGY - GLOUCESTERSHIRE - GLOUCESTER (ASPEN CENTRE) (ACG13)",3,"NA","*","*","*","*","*","*","*","*","*","*","*","*","*","*","*","*"]
["IS1","ACG23","NEWMEDICA COMMUNITY OPHTHALMOLOGY - IPSWICH - ST HELEN'S HEALTHCARE",0,"NA","NA","NA",0,0,0,0,0,0,0,0,0,0,0,0,0,0]
["IS1","ACG19","NEWMEDICA COMMUNITY OPHTHALMOLOGY - LEEDS",4,"NA","*","*","*","*","*","*","*","*","*","*","*","*","*","*","*","*"]
["IS1","ACG07","NEWMEDICA COMMUNITY OPHTHALMOLOGY - LEICESTERSHIRE - LEICESTER (STONEYGATE EYE HOSPITAL)",1,"NA","*","*","*","*","*","*","*","*","*","*","*","*","*","*","*","*"]
["IS1","ACG09","NEWMEDICA COMMUNITY OPHTHALMOLOGY - NORTH DERBYSHIRE - BARLBOROUGH TREATMENT CENTRE",7,"NA",1,0,7,0,0,0,0,0,0,0,0,7,0,0,0,0]
["IS1","ACG08","NEWMEDICA OPHTHALMOLOGY - NUNEATON - CAMP HILL - GP LED HEALTH CENTRE",29,"NA",0.96551724137931039,3.4482758620689655E-2,25,3,0,0,1,0,0,0,0,24,0,0,5,0]
["IS1","NMN","PENINSULA HEALTH LLP",0,"NA","NA","NA",0,0,0,0,0,0,0,0,0,0,0,0,0,0]
["IS1","NEQ","PHOENIX HEALTH SOLUTIONS LIMITED HQ",53,"NA",0.94339622641509435,1.8867924528301886E-2,43,7,2,0,1,0,53,0,0,0,0,0,0,0]
["IS1","NEY","PIONEER HEALTHCARE LIMITED",44,164,0.90909090909090906,2.2727272727272728E-2,33,7,2,1,0,1,44,0,0,0,0,0,0,0]
["IS1","NTP13","PRACTICE PLUS GROUP HOSPITAL - BARLBOROUGH",284,1064,0.9401408450704225,3.873239436619718E-2,239,28,6,6,5,0,284,0,0,0,0,0,0,0]
["IS1","NTPH2","PRACTICE PLUS GROUP HOSPITAL - EMERSONS GREEN",85,1637,0.97647058823529409,0,82,1,2,0,0,0,0,85,0,0,0,0,0,0]
["IS1","NTP15","PRACTICE PLUS GROUP HOSPITAL - ILFORD",1198,1910,0.9858096828046744,5.008347245409015E-3,1030,151,10,3,3,1,0,0,1198,0,0,0,0,0]
["IS1","NTPH5","PRACTICE PLUS GROUP HOSPITAL - PLYMOUTH",180,960,1,0,179,1,0,0,0,0,0,180,0,0,0,0,0,0]
["IS1","NTPH1","PRACTICE PLUS GROUP HOSPITAL - SHEPTON MALLET",287,1505,0.98954703832752611,0,230,54,3,0,0,0,0,287,0,0,0,0,0,0]
["IS1","NTP11","PRACTICE PLUS GROUP HOSPITAL - SOUTHAMPTON",233,2894,0.98712446351931327,8.5836909871244635E-3,199,31,1,1,1,0,0,233,0,0,0,0,0,0]
["IS1","NTPAE","PRACTICE PLUS GROUP OPHTHALMOLOGY - NORTH WEST",83,1464,1,0,64,19,0,0,0,0,0,83,0,0,0,0,0,0]
["IS1","NTPAD","PRACTICE PLUS GROUP SURGICAL CENTRE - ST MARYS PORTSMOUTH",1015,1740,0.99310344827586206,9.8522167487684722E-4,941,67,5,1,0,1,0,1015,0,0,0,0,0,0]
["IS1","NAM","PROBUS SURGERY LIMITED",1,"NA","*","*","*","*","*","*","*","*","*","*","*","*","*","*","*","*"]
["IS1","NVC","RAMSAY HEALTHCARE UK OPERATIONS LIMITED",1522,73894,0.9940867279894875,3.2851511169513796E-3,1324,189,0,3,2,4,0,0,0,1176,0,0,346,0]
["IS1","NT3","SPIRE HEALTHCARE",396,33444,0.94696969696969702,2.5252525252525252E-2,321,54,11,3,7,0,0,0,0,0,0,0,396,0]
["IS1","AAH","TETBURY HOSPITAL TRUST LTD",0,"NA","NA","NA",0,0,0,0,0,0,0,0,0,0,0,0,0,0]
["IS1","NQT","VIRGIN CARE LTD",346,208,1,0,321,25,0,0,0,0,0,0,0,0,278,0,68,0]
["IS1","NDA","VIRGIN CARE SERVICES LTD",1,"NA","*","*","*","*","*","*","*","*","*","*","*","*","*","*","*","*"]

{"sheet":"BS","index":4,"n_rows":226,"n_cols":24,"rows_kept":226,"cut":false,"hidden":true,"merged":[]}
[null,"Sort","Region (Local Office) code","Region (Local Office) name","Org code","Org name",null,"Sort Lists:","Sort range…","Sort range…","Region (Local Office) Reference Lists:","Code…","Name…","Region (Local Office) Linked Lists:","Code…","Name…","Orgs Reference List:","Code…","Code…","Name…",null,"Orgs Linked List:","Code…","Name…"]
["OP Region (Local Office)",1,1,1,"N/A","N/A",null,null,"Region (LO) Code","Region (LO) Code",null,"QE1","Healthier Lancashire and South Cumbria",null,"QE1","Healthier Lancashire and South Cumbria",null,"QE1","RXL","BLACKPOOL TEACHING HOSPITALS NHS FOUNDATION TRUST",null,null,"RXL","BLACKPOOL TEACHING HOSPITALS NHS FOUNDATION TRUST"]
["OP Orgs",1,1,1,1,1,null,null,"Region (Local Office) Name","Org Code",null,"QF7","South Yorkshire and Bassetlaw STP",null,"QF7","South Yorkshire and Bassetlaw STP",null,"QE1","RXR","EAST LANCASHIRE HOSPITALS NHS TRUST",null,null,"RXR","EAST LANCASHIRE HOSPITALS NHS TRUST"]
[null,null,null,null,null,null,null,null,"Total Responses","Organisation Name",null,"QGH","Herefordshire and Worcestershire STP",null,"QGH","Herefordshire and Worcestershire STP",null,"QE1","RXN","LANCASHIRE TEACHING HOSPITALS NHS FOUNDATION TRUST",null,null,"RXN","LANCASHIRE TEACHING HOSPITALS NHS FOUNDATION TRUST"]
[null,null,null,null,null,null,null,null,"Total Eligible","Total Responses",null,"QH8","Mid and South Essex STP",null,"QH8","Mid and South Essex STP",null,"QE1","RTX","UNIVERSITY HOSPITALS OF MORECAMBE BAY NHS FOUNDATION TRUST",null,null,"RTX","UNIVERSITY HOSPITALS OF MORECAMBE BAY NHS FOUNDATION TRUST"]
[null,null,null,null,null,null,null,null,"Percentage Recommended","Total Eligible",null,"QHG","Bedfordshire, Luton and Milton Keynes STP",null,"QHG","Bedfordshire, Luton and Milton Keynes STP",null,"QF7","RFF","BARNSLEY HOSPITAL NHS FOUNDATION TRUST",null,null,"RFF","BARNSLEY HOSPITAL NHS FOUNDATION TRUST"]
[null,null,null,null,null,null,null,null,"Percentage Not Recommended","Percentage Recommended",null,"QHL","Birmingham and Solihull STP",null,"QHL","Birmingham and Solihull STP",null,"QF7","RP5","DONCASTER AND BASSETLAW TEACHING HOSPITALS NHS FOUNDATION TRUST",null,null,"RP5","DONCASTER AND BASSETLAW TEACHING HOSPITALS NHS FOUNDATION TRUST"]
[null,null,null,null,null,null,null,null,"Extremely Likely","Percentage Not Recommended",null,"QHM","Cumbria and North East STP",null,"QHM","Cumbria and North East STP",null,"QF7","RCU","SHEFFIELD CHILDREN'S NHS FOUNDATION TRUST",null,null,"RCU","SHEFFIELD CHILDREN'S NHS FOUNDATION TRUST"]
[null,null,null,null,null,null,null,null,"Likely","Extremely Likely",null,"QJ2","Joined Up Care Derbyshire STP",null,"QJ2","Joined Up Care Derbyshire STP",null,"QF7","RHQ","SHEFFIELD TEACHING HOSPITALS NHS FOUNDATION TRUST",null,null,"RHQ","SHEFFIELD TEACHING HOSPITALS NHS FOUNDATION TRUST"]
[null,null,null,null,null,null,null,null,"Neither","Likely",null,"QJG","Suffolk and North East Essex STP",null,"QJG","Suffolk and North East Essex STP",null,"QF7","RFR","THE ROTHERHAM NHS FOUNDATION TRUST",null,null,"RFR","THE ROTHERHAM NHS FOUNDATION TRUST"]
[null,null,null,null,null,null,null,null,"Unlikely","Neither",null,"QJK","Devon STP",null,"QJK","Devon STP",null,"QGH","RWP","WORCESTERSHIRE ACUTE HOSPITALS NHS TRUST",null,null,"RWP","WORCESTERSHIRE ACUTE HOSPITALS NHS TRUST"]
[null,null,null,null,null,null,null,null,"Extremely Unlikely","Unlikely",null,"QJM","Lincolnshire STP",null,"QJM","Lincolnshire STP",null,"QGH","RLQ","WYE VALLEY NHS TRUST",null,null,"RLQ","WYE VALLEY NHS TRUST"]
[null,null,null,null,null,null,null,null,"Don't Know","Extremely Unlikely",null,"QK1","Leicester, Leicestershire and Rutland STP",null,"QK1","Leicester, Leicestershire and Rutland STP",null,"QH8","RAJ","MID AND SOUTH ESSEX NHS FOUNDATION TRUST",null,null,"RAJ","MID AND SOUTH ESSEX NHS FOUNDATION TRUST"]
[null,null,null,null,null,null,null,null,null,"Don't Know",null,"QKK","Our Healthier South East London STP",null,"QKK","Our Healthier South East London STP",null,"QHG","RC9","BEDFORDSHIRE HOSPITALS NHS FOUNDATION TRUST",null,null,"RC9","BEDFORDSHIRE HOSPITALS NHS FOUNDATION TRUST"]
[null,null,null,null,null,null,null,null,null,"SMS/Text/\nSmartphone app",null,"QKS","Kent and Medway STP",null,"QKS","Kent and Medway STP",null,"QHG","RD8","MILTON KEYNES UNIVERSITY HOSPITAL NHS FOUNDATION TRUST",null,null,"RD8","MILTON KEYNES UNIVERSITY HOSPITAL NHS FOUNDATION TRUST"]
[null,null,null,null,null,null,null,null,null,"Electronic tablet",null,"QM7","Hertfordshire and West Essex STP",null,"QM7","Hertfordshire and West Essex STP",null,"QHL","RQ3","BIRMINGHAM WOMEN'S AND CHILDREN'S NHS FOUNDATION TRUST",null,null,"RQ3","BIRMINGHAM WOMEN'S AND CHILDREN'S NHS FOUNDATION TRUST"]
[null,null,null,null,null,null,null,null,null,"Paper/Postcard in care/at discharge",null,"QMF","East London Health & Care Partnership (STP)",null,"QMF","East London Health & Care Partnership (STP)",null,"QHL","RRK","UNIVERSITY HOSPITALS BIRMINGHAM NHS FOUNDATION TRUST",null,null,"RRK","UNIVERSITY HOSPITALS BIRMINGHAM NHS FOUNDATION TRUST"]
[null,null,null,null,null,null,null,null,null,"Paper survey sent to home ",null,"QMJ","North London Partners in Health & Care (STP)",null,"QMJ","North London Partners in Health & Care (STP)",null,"QHM","RXP","COUNTY DURHAM AND DARLINGTON NHS FOUNDATION TRUST",null,null,"RXP","COUNTY DURHAM AND DARLINGTON NHS FOUNDATION TRUST"]
[null,null,null,null,null,null,null,null,null,"Telephone survey",null,"QMM","Norfolk and Waveney Health & Care Partnership (STP)",null,"QMM","Norfolk and Waveney Health & Care Partnership (STP)",null,"QHM","RR7","GATESHEAD HEALTH NHS FOUNDATION TRUST",null,null,"RR7","GATESHEAD HEALTH NHS FOUNDATION TRUST"]
[null,null,null,null,null,null,null,null,null,"Online survey",null,"QNC","Staffordshire & Stoke on Trent STP",null,"QNC","Staffordshire & Stoke on Trent STP",null,"QHM","RNN","NORTH CUMBRIA INTEGRATED CARE NHS FOUNDATION TRUST",null,null,"RNN","NORTH CUMBRIA INTEGRATED CARE NHS FOUNDATION TRUST"]
[null,null,null,null,null,null,null,null,null,"Other",null,"QNQ","Frimley Health & Care (STP)",null,"QNQ","Frimley Health & Care (STP)",null,"QHM","RVW","NORTH TEES AND HARTLEPOOL NHS FOUNDATION TRUST",null,null,"RVW","NORTH TEES AND HARTLEPOOL NHS FOUNDATION TRUST"]
[null,null,null,null,null,null,null,null,null,null,null,"QNX","Sussex Health and Care Partnership STP",null,"QNX","Sussex Health and Care Partnership STP",null,"QHM","RTF","NORTHUMBRIA HEALTHCARE NHS FOUNDATION TRUST",null,null,"RTF","NORTHUMBRIA HEALTHCARE NHS FOUNDATION TRUST"]
[null,null,null,null,null,null,null,null,null,null,null,"QOC","Shropshire and Telford and Wrekin STP",null,"QOC","Shropshire and Telford and Wrekin STP",null,"QHM","RTR","SOUTH TEES HOSPITALS NHS FOUNDATION TRUST",null,null,"RTR","SOUTH TEES HOSPITALS NHS FOUNDATION TRUST"]
[null,null,null,null,null,null,null,null,null,null,null,"QOP","Greater Manchester Health & Social Care Partnership",null,"QOP","Greater Manchester Health & Social Care Partnership",null,"QHM","R0B","SOUTH TYNESIDE AND SUNDERLAND NHS FOUNDATION TRUST",null,null,"R0B","SOUTH TYNESIDE AND SUNDERLAND NHS FOUNDATION TRUST"]
[null,null,null,null,null,null,null,null,null,null,null,"QOQ","Humber, Coast and Vale STP",null,"QOQ","Humber, Coast and Vale STP",null,"QHM","RTD","THE NEWCASTLE UPON TYNE HOSPITALS NHS FOUNDATION TRUST",null,null,"RTD","THE NEWCASTLE UPON TYNE HOSPITALS NHS FOUNDATION TRUST"]
[null,null,null,null,null,null,null,null,null,null,null,"QOX","Bath and North East Somerset, Swindon and Wiltshire STP",null,"QOX","Bath and North East Somerset, Swindon and Wiltshire STP",null,"QJ2","RFS","CHESTERFIELD ROYAL HOSPITAL NHS FOUNDATION TRUST",null,null,"RFS","CHESTERFIELD ROYAL HOSPITAL NHS FOUNDATION TRUST"]
[null,null,null,null,null,null,null,null,null,null,null,"QPM","Northamptonshire STP",null,"QPM","Northamptonshire STP",null,"QJ2","RTG","UNIVERSITY HOSPITALS OF DERBY AND BURTON NHS FOUNDATION TRUST",null,null,"RTG","UNIVERSITY HOSPITALS OF DERBY AND BURTON NHS FOUNDATION TRUST"]
[null,null,null,null,null,null,null,null,null,null,null,"QR1","Gloucestershire STP",null,"QR1","Gloucestershire STP",null,"QJG","RDE","EAST SUFFOLK AND NORTH ESSEX NHS FOUNDATION TRUST",null,null,"RDE","EAST SUFFOLK AND NORTH ESSEX NHS FOUNDATION TRUST"]
[null,null,null,null,null,null,null,null,null,null,null,"QRL","Hampshire and the Isle of Wight STP",null,"QRL","Hampshire and the Isle of Wight STP",null,"QJG","Q1S8W","NEWMEDICA - BURY ST EDMUNDS",null,null,"Q1S8W","NEWMEDICA - BURY ST EDMUNDS"]
[null,null,null,null,null,null,null,null,null,null,null,"QRV","North West London Health & Care Partnership (STP)",null,"QRV","North West London Health & Care Partnership (STP)",null,"QJG","RGR","WEST SUFFOLK NHS FOUNDATION TRUST",null,null,"RGR","WEST SUFFOLK NHS FOUNDATION TRUST"]
[null,null,null,null,null,null,null,null,null,null,null,"QSL","Somerset STP",null,"QSL","Somerset STP",null,"QJK","RBZ","NORTHERN DEVON HEALTHCARE NHS TRUST",null,null,"RBZ","NORTHERN DEVON HEALTHCARE NHS TRUST"]
[null,null,null,null,null,null,null,null,null,null,null,"QT1","Nottingham and Nottinghamshire Health and Care STP",null,"QT1","Nottingham and Nottinghamshire Health and Care STP",null,"QJK","RH8","ROYAL DEVON AND EXETER NHS FOUNDATION TRUST",null,null,"RH8","ROYAL DEVON AND EXETER NHS FOUNDATION TRUST"]
[null,null,null,null,null,null,null,null,null,null,null,"QT6","Cornwall and the Isles of Scilly Health & Social Care Partnership (STP)",null,"QT6","Cornwall and the Isles of Scilly Health & Social Care Partnership (STP)",null,"QJK","RK9","UNIVERSITY HOSPITALS PLYMOUTH NHS TRUST",null,null,"RK9","UNIVERSITY HOSPITALS PLYMOUTH NHS TRUST"]
[null,null,null,null,null,null,null,null,null,null,null,"QU9","Buckinghamshire, Oxfordshire and Berkshire West STP",null,"QU9","Buckinghamshire, Oxfordshire and Berkshire West STP",null,"QJM","RWD","UNITED LINCOLNSHIRE HOSPITALS NHS TRUST",null,null,"RWD","UNITED LINCOLNSHIRE HOSPITALS NHS TRUST"]
[null,null,null,null,null,null,null,null,null,null,null,"QUA","The Black Country and West Birmingham STP",null,"QUA","The Black Country and West Birmingham STP",null,"QK1","RWE","UNIVERSITY HOSPITALS OF LEICESTER NHS TRUST",null,null,"RWE","UNIVERSITY HOSPITALS OF LEICESTER NHS TRUST"]
[null,null,null,null,null,null,null,null,null,null,null,"QUE","Cambridgeshire and Peterborough STP",null,"QUE","Cambridgeshire and Peterborough STP",null,"QKK","RJ1","GUY'S AND ST THOMAS' NHS FOUNDATION TRUST",null,null,"RJ1","GUY'S AND ST THOMAS' NHS FOUNDATION TRUST"]
[null,null,null,null,null,null,null,null,null,null,null,"QUY","Bristol, North Somerset and South Gloucestershire STP",null,"QUY","Bristol, North Somerset and South Gloucestershire STP",null,"QKK","RJZ","KING'S COLLEGE HOSPITAL NHS FOUNDATION TRUST",null,null,"RJZ","KING'S COLLEGE HOSPITAL NHS FOUNDATION TRUST"]
[null,null,null,null,null,null,null,null,null,null,null,"QVV","Dorset STP",null,"QVV","Dorset STP",null,"QKK","RJ2","LEWISHAM AND GREENWICH NHS TRUST",null,null,"RJ2","LEWISHAM AND GREENWICH NHS TRUST"]
[null,null,null,null,null,null,null,null,null,null,null,"QWE","South West London Health & Care Partnership (STP)",null,"QWE","South West London Health & Care Partnership (STP)",null,"QKS","RN7","DARTFORD AND GRAVESHAM NHS TRUST",null,null,"RN7","DARTFORD AND GRAVESHAM NHS TRUST"]
[null,null,null,null,null,null,null,null,null,null,null,"QWO","West Yorkshire and Harrogate Health & Care Partnership (STP)",null,"QWO","West Yorkshire and Harrogate Health & Care Partnership (STP)",null,"QKS","RVV","EAST KENT HOSPITALS UNIVERSITY NHS FOUNDATION TRUST",null,null,"RVV","EAST KENT HOSPITALS UNIVERSITY NHS FOUNDATION TRUST"]
[null,null,null,null,null,null,null,null,null,null,null,"QWU","Coventry and Warwickshire STP",null,"QWU","Coventry and Warwickshire STP",null,"QKS","RWF","MAIDSTONE AND TUNBRIDGE WELLS NHS TRUST",null,null,"RWF","MAIDSTONE AND TUNBRIDGE WELLS NHS TRUST"]
[null,null,null,null,null,null,null,null,null,null,null,"QXU","Surrey Heartlands Health & Care Partnership (STP)",null,"QXU","Surrey Heartlands Health & Care Partnership (STP)",null,"QKS","RPA","MEDWAY NHS FOUNDATION TRUST",null,null,"RPA","MEDWAY NHS FOUNDATION TRUST"]
[null,null,null,null,null,null,null,null,null,null,null,"QYG","Cheshire and Merseyside STP",null,"QYG","Cheshire and Merseyside STP",null,"QM7","RWH","EAST AND NORTH HERTFORDSHIRE NHS TRUST",null,null,"RWH","EAST AND NORTH HERTFORDSHIRE NHS TRUST"]
[null,null,null,null,null,null,null,null,null,null,null,"zIS1","Independent Sector Providers",null,"zIS1","Independent Sector Providers",null,"QM7","RQW","THE PRINCESS ALEXANDRA HOSPITAL NHS TRUST",null,null,"RQW","THE PRINCESS ALEXANDRA HOSPITAL NHS TRUST"]
[null,null,null,null,null,null,null,null,null,null,null,null,null,null,null,null,null,"QM7","RWG","WEST HERTFORDSHIRE HOSPITALS NHS TRUST",null,null,"RWG","WEST HERTFORDSHIRE HOSPITALS NHS TRUST"]
[null,null,null,null,null,null,null,null,null,null,null,null,null,null,null,null,null,"QMF","RF4","BARKING, HAVERING AND REDBRIDGE UNIVERSITY HOSPITALS NHS TRUST",null,null,"RF4","BARKING, HAVERING AND REDBRIDGE UNIVERSITY HOSPITALS NHS TRUST"]
[null,null,null,null,null,null,null,null,null,null,null,null,null,null,null,null,null,"QMF","R1H","BARTS HEALTH NHS TRUST",null,null,"R1H","BARTS HEALTH NHS TRUST"]
[null,null,null,null,null,null,null,null,null,null,null,null,null,null,null,null,null,"QMF","RQX","HOMERTON UNIVERSITY HOSPITAL NHS FOUNDATION TRUST",null,null,"RQX","HOMERTON UNIVERSITY HOSPITAL NHS FOUNDATION TRUST"]
[null,null,null,null,null,null,null,null,null,null,null,null,null,null,null,null,null,"QMJ","RP4","GREAT ORMOND STREET HOSPITAL FOR CHILDREN NHS FOUNDATION TRUST",null,null,"RP4","GREAT ORMOND STREET HOSPITAL FOR CHILDREN NHS FOUNDATION TRUST"]
[null,null,null,null,null,null,null,null,null,null,null,null,null,null,null,null,null,"QMJ","RP6","MOORFIELDS EYE HOSPITAL NHS FOUNDATION TRUST",null,null,"RP6","MOORFIELDS EYE HOSPITAL NHS FOUNDATION TRUST"]
[null,null,null,null,null,null,null,null,null,null,null,null,null,null,null,null,null,"QMJ","RAP","NORTH MIDDLESEX UNIVERSITY HOSPITAL NHS TRUST",null,null,"RAP","NORTH MIDDLESEX UNIVERSITY HOSPITAL NHS TRUST"]
[null,null,null,null,null,null,null,null,null,null,null,null,null,null,null,null,null,"QMJ","RRV","UNIVERSITY COLLEGE LONDON HOSPITALS NHS FOUNDATION TRUST",null,null,"RRV","UNIVERSITY COLLEGE LONDON HOSPITALS NHS FOUNDATION TRUST"]
[null,null,null,null,null,null,null,null,null,null,null,null,null,null,null,null,null,"QMJ","RKE","WHITTINGTON HEALTH NHS TRUST",null,null,"RKE","WHITTINGTON HEALTH NHS TRUST"]
[null,null,null,null,null,null,null,null,null,null,null,null,null,null,null,null,null,"QMM","RGP","JAMES PAGET UNIVERSITY HOSPITALS NHS FOUNDATION TRUST",null,null,"RGP","JAMES PAGET UNIVERSITY HOSPITALS NHS FOUNDATION TRUST"]
[null,null,null,null,null,null,null,null,null,null,null,null,null,null,null,null,null,"QMM","RM1","NORFOLK AND NORWICH UNIVERSITY HOSPITALS NHS FOUNDATION TRUST",null,null,"RM1","NORFOLK AND NORWICH UNIVERSITY HOSPITALS NHS FOUNDATION TRUST"]
[null,null,null,null,null,null,null,null,null,null,null,null,null,null,null,null,null,"QMM","RCX","THE QUEEN ELIZABETH HOSPITAL, KING'S LYNN, NHS FOUNDATION TRUST",null,null,"RCX","THE QUEEN ELIZABETH HOSPITAL, KING'S LYNN, NHS FOUNDATION TRUST"]
[null,null,null,null,null,null,null,null,null,null,null,null,null,null,null,null,null,"QNC","RRE","MIDLANDS PARTNERSHIP NHS FOUNDATION TRUST",null,null,"RRE","MIDLANDS PARTNERSHIP NHS FOUNDATION TRUST"]
[null,null,null,null,null,null,null,null,null,null,null,null,null,null,null,null,null,"QNC","RJE","UNIVERSITY HOSPITALS OF NORTH MIDLANDS NHS TRUST",null,null,"RJE","UNIVERSITY HOSPITALS OF NORTH MIDLANDS NHS TRUST"]
[null,null,null,null,null,null,null,null,null,null,null,null,null,null,null,null,null,"QNQ","RDU","FRIMLEY HEALTH NHS FOUNDATION TRUST",null,null,"RDU","FRIMLEY HEALTH NHS FOUNDATION TRUST"]
[null,null,null,null,null,null,null,null,null,null,null,null,null,null,null,null,null,"QNX","RXC","EAST SUSSEX HEALTHCARE NHS TRUST",null,null,"RXC","EAST SUSSEX HEALTHCARE NHS TRUST"]
[null,null,null,null,null,null,null,null,null,null,null,null,null,null,null,null,null,"QNX","RPC","QUEEN VICTORIA HOSPITAL NHS FOUNDATION TRUST",null,null,"RPC","QUEEN VICTORIA HOSPITAL NHS FOUNDATION TRUST"]
[null,null,null,null,null,null,null,null,null,null,null,null,null,null,null,null,null,"QOC","RL1","THE ROBERT JONES AND AGNES HUNT ORTHOPAEDIC HOSPITAL NHS FOUNDATION TRUST",null,null,"RL1","THE ROBERT JONES AND AGNES HUNT ORTHOPAEDIC HOSPITAL NHS FOUNDATION TRUST"]
[null,null,null,null,null,null,null,null,null,null,null,null,null,null,null,null,null,"QOC","RXW","THE SHREWSBURY AND TELFORD HOSPITAL NHS TRUST",null,null,"RXW","THE SHREWSBURY AND TELFORD HOSPITAL NHS TRUST"]
[null,null,null,null,null,null,null,null,null,null,null,null,null,null,null,null,null,"QOP","RMC","BOLTON NHS FOUNDATION TRUST",null,null,"RMC","BOLTON NHS FOUNDATION TRUST"]
[null,null,null,null,null,null,null,null,null,null,null,null,null,null,null,null,null,"QOP","R0A","MANCHESTER UNIVERSITY NHS FOUNDATION TRUST",null,null,"R0A","MANCHESTER UNIVERSITY NHS FOUNDATION TRUST"]
[null,null,null,null,null,null,null,null,null,null,null,null,null,null,null,null,null,"QOP","RW6","PENNINE ACUTE HOSPITALS NHS TRUST",null,null,"RW6","PENNINE ACUTE HOSPITALS NHS TRUST"]
[null,null,null,null,null,null,null,null,null,null,null,null,null,null,null,null,null,"QOP","RM3","SALFORD ROYAL NHS FOUNDATION TRUST",null,null,"RM3","SALFORD ROYAL NHS FOUNDATION TRUST"]
[null,null,null,null,null,null,null,null,null,null,null,null,null,null,null,null,null,"QOP","RWJ","STOCKPORT NHS FOUNDATION TRUST",null,null,"RWJ","STOCKPORT NHS FOUNDATION TRUST"]
[null,null,null,null,null,null,null,null,null,null,null,null,null,null,null,null,null,"QOP","RMP","TAMESIDE AND GLOSSOP INTEGRATED CARE NHS FOUNDATION TRUST",null,null,"RMP","TAMESIDE AND GLOSSOP INTEGRATED CARE NHS FOUNDATION TRUST"]
[null,null,null,null,null,null,null,null,null,null,null,null,null,null,null,null,null,"QOP","RBV","THE CHRISTIE NHS FOUNDATION TRUST",null,null,"RBV","THE CHRISTIE NHS FOUNDATION TRUST"]
[null,null,null,null,null,null,null,null,null,null,null,null,null,null,null,null,null,"QOP","RRF","WRIGHTINGTON, WIGAN AND LEIGH NHS FOUNDATION TRUST",null,null,"RRF","WRIGHTINGTON, WIGAN AND LEIGH NHS FOUNDATION TRUST"]
[null,null,null,null,null,null,null,null,null,null,null,null,null,null,null,null,null,"QOQ","RCD","HARROGATE AND DISTRICT NHS FOUNDATION TRUST",null,null,"RCD","HARROGATE AND DISTRICT NHS FOUNDATION TRUST"]
[null,null,null,null,null,null,null,null,null,null,null,null,null,null,null,null,null,"QOQ","RJL","NORTHERN LINCOLNSHIRE AND GOOLE NHS FOUNDATION TRUST",null,null,"RJL","NORTHERN LINCOLNSHIRE AND GOOLE NHS FOUNDATION TRUST"]
[null,null,null,null,null,null,null,null,null,null,null,null,null,null,null,null,null,"QOQ","RCB","YORK TEACHING HOSPITAL NHS FOUNDATION TRUST",null,null,"RCB","YORK TEACHING HOSPITAL NHS FOUNDATION TRUST"]
[null,null,null,null,null,null,null,null,null,null,null,null,null,null,null,null,null,"QOX","RN3","GREAT WESTERN HOSPITALS NHS FOUNDATION TRUST",null,null,"RN3","GREAT WESTERN HOSPITALS NHS FOUNDATION TRUST"]
[null,null,null,null,null,null,null,null,null,null,null,null,null,null,null,null,null,"QOX","RD1","ROYAL UNITED HOSPITALS BATH NHS FOUNDATION TRUST",null,null,"RD1","ROYAL UNITED HOSPITALS BATH NHS FOUNDATION TRUST"]
[null,null,null,null,null,null,null,null,null,null,null,null,null,null,null,null,null,"QOX","RNZ","SALISBURY NHS FOUNDATION TRUST",null,null,"RNZ","SALISBURY NHS FOUNDATION TRUST"]
[null,null,null,null,null,null,null,null,null,null,null,null,null,null,null,null,null,"QPM","RNQ","KETTERING GENERAL HOSPITAL NHS FOUNDATION TRUST",null,null,"RNQ","KETTERING GENERAL HOSPITAL NHS FOUNDATION TRUST"]
[null,null,null,null,null,null,null,null,null,null,null,null,null,null,null,null,null,"QPM","RNS","NORTHAMPTON GENERAL HOSPITAL NHS TRUST",null,null,"RNS","NORTHAMPTON GENERAL HOSPITAL NHS TRUST"]
[null,null,null,null,null,null,null,null,null,null,null,null,null,null,null,null,null,"QR1","RTE","GLOUCESTERSHIRE HOSPITALS NHS FOUNDATION TRUST",null,null,"RTE","GLOUCESTERSHIRE HOSPITALS NHS FOUNDATION TRUST"]
[null,null,null,null,null,null,null,null,null,null,null,null,null,null,null,null,null,"QRL","RN5","HAMPSHIRE HOSPITALS NHS FOUNDATION TRUST",null,null,"RN5","HAMPSHIRE HOSPITALS NHS FOUNDATION TRUST"]
[null,null,null,null,null,null,null,null,null,null,null,null,null,null,null,null,null,"QRL","R1F","ISLE OF WIGHT NHS TRUST",null,null,"R1F","ISLE OF WIGHT NHS TRUST"]
[null,null,null,null,null,null,null,null,null,null,null,null,null,null,null,null,null,"QRL","RHU","PORTSMOUTH HOSPITALS UNIVERSITY NATIONAL HEALTH SERVICE TRUST",null,null,"RHU","PORTSMOUTH HOSPITALS UNIVERSITY NATIONAL HEALTH SERVICE TRUST"]
[null,null,null,null,null,null,null,null,null,null,null,null,null,null,null,null,null,"QRL","RHM","UNIVERSITY HOSPITAL SOUTHAMPTON NHS FOUNDATION TRUST",null,null,"RHM","UNIVERSITY HOSPITAL SOUTHAMPTON NHS FOUNDATION TRUST"]
[null,null,null,null,null,null,null,null,null,null,null,null,null,null,null,null,null,"QRV","RQM","CHELSEA AND WESTMINSTER HOSPITAL NHS FOUNDATION TRUST",null,null,"RQM","CHELSEA AND WESTMINSTER HOSPITAL NHS FOUNDATION TRUST"]
[null,null,null,null,null,null,null,null,null,null,null,null,null,null,null,null,null,"QRV","RYJ","IMPERIAL COLLEGE HEALTHCARE NHS TRUST",null,null,"RYJ","IMPERIAL COLLEGE HEALTHCARE NHS TRUST"]
[null,null,null,null,null,null,null,null,null,null,null,null,null,null,null,null,null,"QRV","R1K","LONDON NORTH WEST UNIVERSITY HEALTHCARE NHS TRUST",null,null,"R1K","LONDON NORTH WEST UNIVERSITY HEALTHCARE NHS TRUST"]
[null,null,null,null,null,null,null,null,null,null,null,null,null,null,null,null,null,"QRV","RT3","ROYAL BROMPTON & HAREFIELD NHS FOUNDATION TRUST",null,null,"RT3","ROYAL BROMPTON & HAREFIELD NHS FOUNDATION TRUST"]
[null,null,null,null,null,null,null,null,null,null,null,null,null,null,null,null,null,"QRV","RAN","ROYAL NATIONAL ORTHOPAEDIC HOSPITAL NHS TRUST",null,null,"RAN","ROYAL NATIONAL ORTHOPAEDIC HOSPITAL NHS TRUST"]
[null,null,null,null,null,null,null,null,null,null,null,null,null,null,null,null,null,"QRV","RAS","THE HILLINGDON HOSPITALS NHS FOUNDATION TRUST",null,null,"RAS","THE HILLINGDON HOSPITALS NHS FOUNDATION TRUST"]
[null,null,null,null,null,null,null,null,null,null,null,null,null,null,null,null,null,"QRV","RPY","THE ROYAL MARSDEN NHS FOUNDATION TRUST",null,null,"RPY","THE ROYAL MARSDEN NHS FOUNDATION TRUST"]
[null,null,null,null,null,null,null,null,null,null,null,null,null,null,null,null,null,"QSL","RH5","SOMERSET NHS FOUNDATION TRUST",null,null,"RH5","SOMERSET NHS FOUNDATION TRUST"]
[null,null,null,null,null,null,null,null,null,null,null,null,null,null,null,null,null,"QSL","RA4","YEOVIL DISTRICT HOSPITAL NHS FOUNDATION TRUST",null,null,"RA4","YEOVIL DISTRICT HOSPITAL NHS FOUNDATION TRUST"]
[null,null,null,null,null,null,null,null,null,null,null,null,null,null,null,null,null,"QT1","RX1","NOTTINGHAM UNIVERSITY HOSPITALS NHS TRUST",null,null,"RX1","NOTTINGHAM UNIVERSITY HOSPITALS NHS TRUST"]
[null,null,null,null,null,null,null,null,null,null,null,null,null,null,null,null,null,"QT1","RK5","SHERWOOD FOREST HOSPITALS NHS FOUNDATION TRUST",null,null,"RK5","SHERWOOD FOREST HOSPITALS NHS FOUNDATION TRUST"]
[null,null,null,null,null,null,null,null,null,null,null,null,null,null,null,null,null,"QT6","REF","ROYAL CORNWALL HOSPITALS NHS TRUST",null,null,"REF","ROYAL CORNWALL HOSPITALS NHS TRUST"]
[null,null,null,null,null,null,null,null,null,null,null,null,null,null,null,null,null,"QU9","RXQ","BUCKINGHAMSHIRE HEALTHCARE NHS TRUST",null,null,"RXQ","BUCKINGHAMSHIRE HEALTHCARE NHS TRUST"]
[null,null,null,null,null,null,null,null,null,null,null,null,null,null,null,null,null,"QU9","RTH","OXFORD UNIVERSITY HOSPITALS NHS FOUNDATION TRUST",null,null,"RTH","OXFORD UNIVERSITY HOSPITALS NHS FOUNDATION TRUST"]
[null,null,null,null,null,null,null,null,null,null,null,null,null,null,null,null,null,"QU9","RHW","ROYAL BERKSHIRE NHS FOUNDATION TRUST",null,null,"RHW","ROYAL BERKSHIRE NHS FOUNDATION TRUST"]
[null,null,null,null,null,null,null,null,null,null,null,null,null,null,null,null,null,"QUA","RXK","SANDWELL AND WEST BIRMINGHAM HOSPITALS NHS TRUST",null,null,"RXK","SANDWELL AND WEST BIRMINGHAM HOSPITALS NHS TRUST"]
[null,null,null,null,null,null,null,null,null,null,null,null,null,null,null,null,null,"QUA","RNA","THE DUDLEY GROUP NHS FOUNDATION TRUST",null,null,"RNA","THE DUDLEY GROUP NHS FOUNDATION TRUST"]
[null,null,null,null,null,null,null,null,null,null,null,null,null,null,null,null,null,"QUA","RL4","THE ROYAL WOLVERHAMPTON NHS TRUST",null,null,"RL4","THE ROYAL WOLVERHAMPTON NHS TRUST"]
[null,null,null,null,null,null,null,null,null,null,null,null,null,null,null,null,null,"QUA","RBK","WALSALL HEALTHCARE NHS TRUST",null,null,"RBK","WALSALL HEALTHCARE NHS TRUST"]
[null,null,null,null,null,null,null,null,null,null,null,null,null,null,null,null,null,"QUE","RGT","CAMBRIDGE UNIVERSITY HOSPITALS NHS FOUNDATION TRUST",null,null,"RGT","CAMBRIDGE UNIVERSITY HOSPITALS NHS FOUNDATION TRUST"]
[null,null,null,null,null,null,null,null,null,null,null,null,null,null,null,null,null,"QUE","RGN","NORTH WEST ANGLIA NHS FOUNDATION TRUST",null,null,"RGN","NORTH WEST ANGLIA NHS FOUNDATION TRUST"]
[null,null,null,null,null,null,null,null,null,null,null,null,null,null,null,null,null,"QUE","RGM","ROYAL PAPWORTH HOSPITAL NHS FOUNDATION TRUST",null,null,"RGM","ROYAL PAPWORTH HOSPITAL NHS FOUNDATION TRUST"]
[null,null,null,null,null,null,null,null,null,null,null,null,null,null,null,null,null,"QUY","RVJ","NORTH BRISTOL NHS TRUST",null,null,"RVJ","NORTH BRISTOL NHS TRUST"]
[null,null,null,null,null,null,null,null,null,null,null,null,null,null,null,null,null,"QUY","RA7","UNIVERSITY HOSPITALS BRISTOL AND WESTON NHS FOUNDATION TRUST",null,null,"RA7","UNIVERSITY HOSPITALS BRISTOL AND WESTON NHS FOUNDATION TRUST"]
[null,null,null,null,null,null,null,null,null,null,null,null,null,null,null,null,null,"QVV","RBD","DORSET COUNTY HOSPITAL NHS FOUNDATION TRUST",null,null,"RBD","DORSET COUNTY HOSPITAL NHS FOUNDATION TRUST"]
[null,null,null,null,null,null,null,null,null,null,null,null,null,null,null,null,null,"QVV","R0D","UNIVERSITY HOSPITALS DORSET NHS FOUNDATION TRUST",null,null,"R0D","UNIVERSITY HOSPITALS DORSET NHS FOUNDATION TRUST"]
[null,null,null,null,null,null,null,null,null,null,null,null,null,null,null,null,null,"QWE","RJ6","CROYDON HEALTH SERVICES NHS TRUST",null,null,"RJ6","CROYDON HEALTH SERVICES NHS TRUST"]
[null,null,null,null,null,null,null,null,null,null,null,null,null,null,null,null,null,"QWE","RVR","EPSOM AND ST HELIER UNIVERSITY HOSPITALS NHS TRUST",null,null,"RVR","EPSOM AND ST HELIER UNIVERSITY HOSPITALS NHS TRUST"]
[null,null,null,null,null,null,null,null,null,null,null,null,null,null,null,null,null,"QWE","RAX","KINGSTON HOSPITAL NHS FOUNDATION TRUST",null,null,"RAX","KINGSTON HOSPITAL NHS FOUNDATION TRUST"]
[null,null,null,null,null,null,null,null,null,null,null,null,null,null,null,null,null,"QWE","RJ7","ST GEORGE'S UNIVERSITY HOSPITALS NHS FOUNDATION TRUST",null,null,"RJ7","ST GEORGE'S UNIVERSITY HOSPITALS NHS FOUNDATION TRUST"]
[null,null,null,null,null,null,null,null,null,null,null,null,null,null,null,null,null,"QWO","RCF","AIREDALE NHS FOUNDATION TRUST",null,null,"RCF","AIREDALE NHS FOUNDATION TRUST"]
[null,null,null,null,null,null,null,null,null,null,null,null,null,null,null,null,null,"QWO","RAE","BRADFORD TEACHING HOSPITALS NHS FOUNDATION TRUST",null,null,"RAE","BRADFORD TEACHING HOSPITALS NHS FOUNDATION TRUST"]
[null,null,null,null,null,null,null,null,null,null,null,null,null,null,null,null,null,"QWO","RWY","CALDERDALE AND HUDDERSFIELD NHS FOUNDATION TRUST",null,null,"RWY","CALDERDALE AND HUDDERSFIELD NHS FOUNDATION TRUST"]
[null,null,null,null,null,null,null,null,null,null,null,null,null,null,null,null,null,"QWO","RR8","LEEDS TEACHING HOSPITALS NHS TRUST",null,null,"RR8","LEEDS TEACHING HOSPITALS NHS TRUST"]
[null,null,null,null,null,null,null,null,null,null,null,null,null,null,null,null,null,"QWO","RXF","MID YORKSHIRE HOSPITALS NHS TRUST",null,null,"RXF","MID YORKSHIRE HOSPITALS NHS TRUST"]
[null,null,null,null,null,null,null,null,null,null,null,null,null,null,null,null,null,"QWU","RJC","SOUTH WARWICKSHIRE NHS FOUNDATION TRUST",null,null,"RJC","SOUTH WARWICKSHIRE NHS FOUNDATION TRUST"]
[null,null,null,null,null,null,null,null,null,null,null,null,null,null,null,null,null,"QWU","RKB","UNIVERSITY HOSPITALS COVENTRY AND WARWICKSHIRE NHS TRUST",null,null,"RKB","UNIVERSITY HOSPITALS COVENTRY AND WARWICKSHIRE NHS TRUST"]
[null,null,null,null,null,null,null,null,null,null,null,null,null,null,null,null,null,"QXU","RA2","ROYAL SURREY COUNTY HOSPITAL NHS FOUNDATION TRUST",null,null,"RA2","ROYAL SURREY COUNTY HOSPITAL NHS FOUNDATION TRUST"]
[null,null,null,null,null,null,null,null,null,null,null,null,null,null,null,null,null,"QXU","RTP","SURREY AND SUSSEX HEALTHCARE NHS TRUST",null,null,"RTP","SURREY AND SUSSEX HEALTHCARE NHS TRUST"]
[null,null,null,null,null,null,null,null,null,null,null,null,null,null,null,null,null,"QYG","RBS","ALDER HEY CHILDREN'S NHS FOUNDATION TRUST",null,null,"RBS","ALDER HEY CHILDREN'S NHS FOUNDATION TRUST"]
[null,null,null,null,null,null,null,null,null,null,null,null,null,null,null,null,null,"QYG","RJR","COUNTESS OF CHESTER HOSPITAL NHS FOUNDATION TRUST",null,null,"RJR","COUNTESS OF CHESTER HOSPITAL NHS FOUNDATION TRUST"]
[null,null,null,null,null,null,null,null,null,null,null,null,null,null,null,null,null,"QYG","RJN","EAST CHESHIRE NHS TRUST",null,null,"RJN","EAST CHESHIRE NHS TRUST"]
[null,null,null,null,null,null,null,null,null,null,null,null,null,null,null,null,null,"QYG","RBQ","LIVERPOOL HEART AND CHEST HOSPITAL NHS FOUNDATION TRUST",null,null,"RBQ","LIVERPOOL HEART AND CHEST HOSPITAL NHS FOUNDATION TRUST"]
[null,null,null,null,null,null,null,null,null,null,null,null,null,null,null,null,null,"QYG","REM","LIVERPOOL UNIVERSITY HOSPITALS NHS FOUNDATION TRUST",null,null,"REM","LIVERPOOL UNIVERSITY HOSPITALS NHS FOUNDATION TRUST"]
[null,null,null,null,null,null,null,null,null,null,null,null,null,null,null,null,null,"QYG","REP","LIVERPOOL WOMEN'S NHS FOUNDATION TRUST",null,null,"REP","LIVERPOOL WOMEN'S NHS FOUNDATION TRUST"]
[null,null,null,null,null,null,null,null,null,null,null,null,null,null,null,null,null,"QYG","RBT","MID CHESHIRE HOSPITALS NHS FOUNDATION TRUST",null,null,"RBT","MID CHESHIRE HOSPITALS NHS FOUNDATION TRUST"]
[null,null,null,null,null,null,null,null,null,null,null,null,null,null,null,null,null,"QYG","RVY","SOUTHPORT AND ORMSKIRK HOSPITAL NHS TRUST",null,null,"RVY","SOUTHPORT AND ORMSKIRK HOSPITAL NHS TRUST"]
[null,null,null,null,null,null,null,null,null,null,null,null,null,null,null,null,null,"QYG","RBN","ST HELENS AND KNOWSLEY TEACHING HOSPITALS NHS TRUST",null,null,"RBN","ST HELENS AND KNOWSLEY TEACHING HOSPITALS NHS TRUST"]
[null,null,null,null,null,null,null,null,null,null,null,null,null,null,null,null,null,"QYG","REN","THE CLATTERBRIDGE CANCER CENTRE NHS FOUNDATION TRUST",null,null,"REN","THE CLATTERBRIDGE CANCER CENTRE NHS FOUNDATION TRUST"]
[null,null,null,null,null,null,null,null,null,null,null,null,null,null,null,null,null,"QYG","RET","THE WALTON CENTRE NHS FOUNDATION TRUST",null,null,"RET","THE WALTON CENTRE NHS FOUNDATION TRUST"]
[null,null,null,null,null,null,null,null,null,null,null,null,null,null,null,null,null,"QYG","RWW","WARRINGTON AND HALTON TEACHING HOSPITALS NHS FOUNDATION TRUST",null,null,"RWW","WARRINGTON AND HALTON TEACHING HOSPITALS NHS FOUNDATION TRUST"]
[null,null,null,null,null,null,null,null,null,null,null,null,null,null,null,null,null,"QYG","RBL","WIRRAL UNIVERSITY TEACHING HOSPITAL NHS FOUNDATION TRUST",null,null,"RBL","WIRRAL UNIVERSITY TEACHING HOSPITAL NHS FOUNDATION TRUST"]
[null,null,null,null,null,null,null,null,null,null,null,null,null,null,null,null,null,"IS1","NYW17","ASPEN HEALTHCARE - MIDLAND EYE",null,null,"NYW17","ASPEN HEALTHCARE - MIDLAND EYE"]
[null,null,null,null,null,null,null,null,null,null,null,null,null,null,null,null,null,"IS1","NWF01","BENENDEN HOSPITAL",null,null,"NWF01","BENENDEN HOSPITAL"]
[null,null,null,null,null,null,null,null,null,null,null,null,null,null,null,null,null,"IS1","NT402","BMI - BATH CLINIC",null,null,"NT402","BMI - BATH CLINIC"]
[null,null,null,null,null,null,null,null,null,null,null,null,null,null,null,null,null,"IS1","NT405","BMI - BISHOPS WOOD",null,null,"NT405","BMI - BISHOPS WOOD"]
[null,null,null,null,null,null,null,null,null,null,null,null,null,null,null,null,null,"IS1","NT409","BMI - CHELSFIELD PARK HOSPITAL",null,null,"NT409","BMI - CHELSFIELD PARK HOSPITAL"]
[null,null,null,null,null,null,null,null,null,null,null,null,null,null,null,null,null,"IS1","NT417","BMI - GORING HALL HOSPITAL",null,null,"NT417","BMI - GORING HALL HOSPITAL"]
[null,null,null,null,null,null,null,null,null,null,null,null,null,null,null,null,null,"IS1","NT416","BMI - HENDON HOSPITAL",null,null,"NT416","BMI - HENDON HOSPITAL"]
[null,null,null,null,null,null,null,null,null,null,null,null,null,null,null,null,null,"IS1","NT433","BMI - SARUM ROAD HOSPITAL",null,null,"NT433","BMI - SARUM ROAD HOSPITAL"]
[null,null,null,null,null,null,null,null,null,null,null,null,null,null,null,null,null,"IS1","NT436","BMI - SHIRLEY OAKS HOSPITAL",null,null,"NT436","BMI - SHIRLEY OAKS HOSPITAL"]
[null,null,null,null,null,null,null,null,null,null,null,null,null,null,null,null,null,"IS1","NT401","BMI - THE ALEXANDRA HOSPITAL",null,null,"NT401","BMI - THE ALEXANDRA HOSPITAL"]
[null,null,null,null,null,null,null,null,null,null,null,null,null,null,null,null,null,"IS1","NT403","BMI - THE BEARDWOOD HOSPITAL",null,null,"NT403","BMI - THE BEARDWOOD HOSPITAL"]
[null,null,null,null,null,null,null,null,null,null,null,null,null,null,null,null,null,"IS1","NT404","BMI - THE BEAUMONT HOSPITAL",null,null,"NT404","BMI - THE BEAUMONT HOSPITAL"]
[null,null,null,null,null,null,null,null,null,null,null,null,null,null,null,null,null,"IS1","NT406","BMI - THE BLACKHEATH HOSPITAL",null,null,"NT406","BMI - THE BLACKHEATH HOSPITAL"]
[null,null,null,null,null,null,null,null,null,null,null,null,null,null,null,null,null,"IS1","NT408","BMI - THE CHAUCER HOSPITAL",null,null,"NT408","BMI - THE CHAUCER HOSPITAL"]
[null,null,null,null,null,null,null,null,null,null,null,null,null,null,null,null,null,"IS1","NT410","BMI - THE CHILTERN HOSPITAL",null,null,"NT410","BMI - THE CHILTERN HOSPITAL"]
[null,null,null,null,null,null,null,null,null,null,null,null,null,null,null,null,null,"IS1","NT411","BMI - THE CLEMENTINE CHURCHILL HOSPITAL",null,null,"NT411","BMI - THE CLEMENTINE CHURCHILL HOSPITAL"]
[null,null,null,null,null,null,null,null,null,null,null,null,null,null,null,null,null,"IS1","NT412","BMI - THE DROITWICH SPA HOSPITAL",null,null,"NT412","BMI - THE DROITWICH SPA HOSPITAL"]
[null,null,null,null,null,null,null,null,null,null,null,null,null,null,null,null,null,"IS1","NT418","BMI - THE HAMPSHIRE CLINIC",null,null,"NT418","BMI - THE HAMPSHIRE CLINIC"]
[null,null,null,null,null,null,null,null,null,null,null,null,null,null,null,null,null,"IS1","NT419","BMI - THE HARBOUR HOSPITAL",null,null,"NT419","BMI - THE HARBOUR HOSPITAL"]
[null,null,null,null,null,null,null,null,null,null,null,null,null,null,null,null,null,"IS1","NT420","BMI - THE HIGHFIELD HOSPITAL",null,null,"NT420","BMI - THE HIGHFIELD HOSPITAL"]
[null,null,null,null,null,null,null,null,null,null,null,null,null,null,null,null,null,"IS1","NT421","BMI - THE KINGS OAK HOSPITAL",null,null,"NT421","BMI - THE KINGS OAK HOSPITAL"]
[null,null,null,null,null,null,null,null,null,null,null,null,null,null,null,null,null,"IS1","NT422","BMI - THE LONDON INDEPENDENT HOSPITAL",null,null,"NT422","BMI - THE LONDON INDEPENDENT HOSPITAL"]
[null,null,null,null,null,null,null,null,null,null,null,null,null,null,null,null,null,"IS1","NT423","BMI - THE MANOR HOSPITAL",null,null,"NT423","BMI - THE MANOR HOSPITAL"]
[null,null,null,null,null,null,null,null,null,null,null,null,null,null,null,null,null,"IS1","NT424","BMI - THE MERIDEN HOSPITAL",null,null,"NT424","BMI - THE MERIDEN HOSPITAL"]
[null,null,null,null,null,null,null,null,null,null,null,null,null,null,null,null,null,"IS1","NT427","BMI - THE PARK HOSPITAL",null,null,"NT427","BMI - THE PARK HOSPITAL"]
[null,null,null,null,null,null,null,null,null,null,null,null,null,null,null,null,null,"IS1","NT428","BMI - THE PRINCESS MARGARET HOSPITAL",null,null,"NT428","BMI - THE PRINCESS MARGARET HOSPITAL"]
[null,null,null,null,null,null,null,null,null,null,null,null,null,null,null,null,null,"IS1","NT429","BMI - THE PRIORY HOSPITAL",null,null,"NT429","BMI - THE PRIORY HOSPITAL"]
[null,null,null,null,null,null,null,null,null,null,null,null,null,null,null,null,null,"IS1","NT430","BMI - THE RIDGEWAY HOSPITAL",null,null,"NT430","BMI - THE RIDGEWAY HOSPITAL"]
[null,null,null,null,null,null,null,null,null,null,null,null,null,null,null,null,null,"IS1","NT431","BMI - THE RUNNYMEDE HOSPITAL",null,null,"NT431","BMI - THE RUNNYMEDE HOSPITAL"]
[null,null,null,null,null,null,null,null,null,null,null,null,null,null,null,null,null,"IS1","NT432","BMI - THE SANDRINGHAM HOSPITAL",null,null,"NT432","BMI - THE SANDRINGHAM HOSPITAL"]
[null,null,null,null,null,null,null,null,null,null,null,null,null,null,null,null,null,"IS1","NT434","BMI - THE SAXON CLINIC",null,null,"NT434","BMI - THE SAXON CLINIC"]
[null,null,null,null,null,null,null,null,null,null,null,null,null,null,null,null,null,"IS1","NT435","BMI - THE SHELBURNE HOSPITAL",null,null,"NT435","BMI - THE SHELBURNE HOSPITAL"]
[null,null,null,null,null,null,null,null,null,null,null,null,null,null,null,null,null,"IS1","NT437","BMI - THE SLOANE HOSPITAL",null,null,"NT437","BMI - THE SLOANE HOSPITAL"]
[null,null,null,null,null,null,null,null,null,null,null,null,null,null,null,null,null,"IS1","NT443","BMI - THE WINTERBOURNE HOSPITAL",null,null,"NT443","BMI - THE WINTERBOURNE HOSPITAL"]
[null,null,null,null,null,null,null,null,null,null,null,null,null,null,null,null,null,"IS1","NT440","BMI - THORNBURY HOSPITAL",null,null,"NT440","BMI - THORNBURY HOSPITAL"]
[null,null,null,null,null,null,null,null,null,null,null,null,null,null,null,null,null,"IS1","NT441","BMI - THREE SHIRES HOSPITAL",null,null,"NT441","BMI - THREE SHIRES HOSPITAL"]
[null,null,null,null,null,null,null,null,null,null,null,null,null,null,null,null,null,"IS1","NT497","BMI GISBURNE PARK HOSPITAL",null,null,"NT497","BMI GISBURNE PARK HOSPITAL"]
[null,null,null,null,null,null,null,null,null,null,null,null,null,null,null,null,null,"IS1","NT455","BMI MOUNT ALVERNIA HOSPITAL",null,null,"NT455","BMI MOUNT ALVERNIA HOSPITAL"]
[null,null,null,null,null,null,null,null,null,null,null,null,null,null,null,null,null,"IS1","NT490","BMI SOUTHEND PRIVATE HOSPITAL",null,null,"NT490","BMI SOUTHEND PRIVATE HOSPITAL"]
[null,null,null,null,null,null,null,null,null,null,null,null,null,null,null,null,null,"IS1","NT446","BMI ST EDMUNDS HOSPITAL",null,null,"NT446","BMI ST EDMUNDS HOSPITAL"]
[null,null,null,null,null,null,null,null,null,null,null,null,null,null,null,null,null,"IS1","NT451","BMI THE CAVELL HOSPITAL",null,null,"NT451","BMI THE CAVELL HOSPITAL"]
[null,null,null,null,null,null,null,null,null,null,null,null,null,null,null,null,null,"IS1","NT447","BMI THE DUCHY HOSPITAL",null,null,"NT447","BMI THE DUCHY HOSPITAL"]
[null,null,null,null,null,null,null,null,null,null,null,null,null,null,null,null,null,"IS1","NT445","BMI THE EDGBASTON HOSPITAL",null,null,"NT445","BMI THE EDGBASTON HOSPITAL"]
[null,null,null,null,null,null,null,null,null,null,null,null,null,null,null,null,null,"IS1","NT448","BMI THE HUDDERSFIELD HOSPITAL",null,null,"NT448","BMI THE HUDDERSFIELD HOSPITAL"]
[null,null,null,null,null,null,null,null,null,null,null,null,null,null,null,null,null,"IS1","NT449","BMI THE LANCASTER HOSPITAL",null,null,"NT449","BMI THE LANCASTER HOSPITAL"]
[null,null,null,null,null,null,null,null,null,null,null,null,null,null,null,null,null,"IS1","NT450","BMI THE LINCOLN HOSPITAL",null,null,"NT450","BMI THE LINCOLN HOSPITAL"]
[null,null,null,null,null,null,null,null,null,null,null,null,null,null,null,null,null,"IS1","NT457","BMI WOODLANDS HOSPITAL",null,null,"NT457","BMI WOODLANDS HOSPITAL"]
[null,null,null,null,null,null,null,null,null,null,null,null,null,null,null,null,null,"IS1","NV302","CIRCLE BATH HOSPITAL",null,null,"NV302","CIRCLE BATH HOSPITAL"]
[null,null,null,null,null,null,null,null,null,null,null,null,null,null,null,null,null,"IS1","NV323","CIRCLE READING HOSPITAL",null,null,"NV323","CIRCLE READING HOSPITAL"]
[null,null,null,null,null,null,null,null,null,null,null,null,null,null,null,null,null,"IS1","NNE","DORKING HEALTHCARE LIMITED (DHC)",null,null,"NNE","DORKING HEALTHCARE LIMITED (DHC)"]
[null,null,null,null,null,null,null,null,null,null,null,null,null,null,null,null,null,"IS1","ACM","EYE CARE MEDICAL LTD",null,null,"ACM","EYE CARE MEDICAL LTD"]
[null,null,null,null,null,null,null,null,null,null,null,null,null,null,null,null,null,"IS1","NVG01","FAIRFIELD HOSPITAL",null,null,"NVG01","FAIRFIELD HOSPITAL"]
[null,null,null,null,null,null,null,null,null,null,null,null,null,null,null,null,null,"IS1","NXM","HORDER HEALTHCARE",null,null,"NXM","HORDER HEALTHCARE"]
[null,null,null,null,null,null,null,null,null,null,null,null,null,null,null,null,null,"IS1","NV1","INHEALTH LIMITED",null,null,"NV1","INHEALTH LIMITED"]
[null,null,null,null,null,null,null,null,null,null,null,null,null,null,null,null,null,"IS1","NCR","ISIGHT",null,null,"NCR","ISIGHT"]
[null,null,null,null,null,null,null,null,null,null,null,null,null,null,null,null,null,"IS1","ADP","KIMS HOSPITAL",null,null,"ADP","KIMS HOSPITAL"]
[null,null,null,null,null,null,null,null,null,null,null,null,null,null,null,null,null,"IS1","ACG20","NEWMEDICA - BRISTOL - LITFIELD HOUSE",null,null,"ACG20","NEWMEDICA - BRISTOL - LITFIELD HOUSE"]
[null,null,null,null,null,null,null,null,null,null,null,null,null,null,null,null,null,"IS1","ACG36","NEWMEDICA - EXETER - GLEN HOUSE",null,null,"ACG36","NEWMEDICA - EXETER - GLEN HOUSE"]
[null,null,null,null,null,null,null,null,null,null,null,null,null,null,null,null,null,"IS1","ACG41","NEWMEDICA - FROME",null,null,"ACG41","NEWMEDICA - FROME"]
[null,null,null,null,null,null,null,null,null,null,null,null,null,null,null,null,null,"IS1","L0D9W","NEWMEDICA - GLOUCESTER (BRIGHOUSE COURT)",null,null,"L0D9W","NEWMEDICA - GLOUCESTER (BRIGHOUSE COURT)"]
[null,null,null,null,null,null,null,null,null,null,null,null,null,null,null,null,null,"IS1","ACG37","NEWMEDICA - IPSWICH",null,null,"ACG37","NEWMEDICA - IPSWICH"]
[null,null,null,null,null,null,null,null,null,null,null,null,null,null,null,null,null,"IS1","ACG38","NEWMEDICA - LANGFORD",null,null,"ACG38","NEWMEDICA - LANGFORD"]
[null,null,null,null,null,null,null,null,null,null,null,null,null,null,null,null,null,"IS1","ACG39","NEWMEDICA - SWINDON",null,null,"ACG39","NEWMEDICA - SWINDON"]
[null,null,null,null,null,null,null,null,null,null,null,null,null,null,null,null,null,"IS1","ACG24","NEWMEDICA - TEESSIDE - NORTH ORMESBY",null,null,"ACG24","NEWMEDICA - TEESSIDE - NORTH ORMESBY"]
[null,null,null,null,null,null,null,null,null,null,null,null,null,null,null,null,null,"IS1","ACG40","NEWMEDICA - WAKEFIELD",null,null,"ACG40","NEWMEDICA - WAKEFIELD"]
[null,null,null,null,null,null,null,null,null,null,null,null,null,null,null,null,null,"IS1","ACG35","NEWMEDICA - WINTERTON",null,null,"ACG35","NEWMEDICA - WINTERTON"]
[null,null,null,null,null,null,null,null,null,null,null,null,null,null,null,null,null,"IS1","ACG30","NEWMEDICA - WORKSOP - DUKERIES",null,null,"ACG30","NEWMEDICA - WORKSOP - DUKERIES"]
[null,null,null,null,null,null,null,null,null,null,null,null,null,null,null,null,null,"IS1","ACG13","NEWMEDICA COMMUNITY OPHTHALMOLOGY - GLOUCESTERSHIRE - GLOUCESTER (ASPEN CENTRE) (ACG13)",null,null,"ACG13","NEWMEDICA COMMUNITY OPHTHALMOLOGY - GLOUCESTERSHIRE - GLOUCESTER (ASPEN CENTRE) (ACG13)"]
[null,null,null,null,null,null,null,null,null,null,null,null,null,null,null,null,null,"IS1","ACG23","NEWMEDICA COMMUNITY OPHTHALMOLOGY - IPSWICH - ST HELEN'S HEALTHCARE",null,null,"ACG23","NEWMEDICA COMMUNITY OPHTHALMOLOGY - IPSWICH - ST HELEN'S HEALTHCARE"]
[null,null,null,null,null,null,null,null,null,null,null,null,null,null,null,null,null,"IS1","ACG19","NEWMEDICA COMMUNITY OPHTHALMOLOGY - LEEDS",null,null,"ACG19","NEWMEDICA COMMUNITY OPHTHALMOLOGY - LEEDS"]
[null,null,null,null,null,null,null,null,null,null,null,null,null,null,null,null,null,"IS1","ACG07","NEWMEDICA COMMUNITY OPHTHALMOLOGY - LEICESTERSHIRE - LEICESTER (STONEYGATE EYE HOSPITAL)",null,null,"ACG07","NEWMEDICA COMMUNITY OPHTHALMOLOGY - LEICESTERSHIRE - LEICESTER (STONEYGATE EYE HOSPITAL)"]
[null,null,null,null,null,null,null,null,null,null,null,null,null,null,null,null,null,"IS1","ACG09","NEWMEDICA COMMUNITY OPHTHALMOLOGY - NORTH DERBYSHIRE - BARLBOROUGH TREATMENT CENTRE",null,null,"ACG09","NEWMEDICA COMMUNITY OPHTHALMOLOGY - NORTH DERBYSHIRE - BARLBOROUGH TREATMENT CENTRE"]
[null,null,null,null,null,null,null,null,null,null,null,null,null,null,null,null,null,"IS1","ACG08","NEWMEDICA OPHTHALMOLOGY - NUNEATON - CAMP HILL - GP LED HEALTH CENTRE",null,null,"ACG08","NEWMEDICA OPHTHALMOLOGY - NUNEATON - CAMP HILL - GP LED HEALTH CENTRE"]
[null,null,null,null,null,null,null,null,null,null,null,null,null,null,null,null,null,"IS1","NMN","PENINSULA HEALTH LLP",null,null,"NMN","PENINSULA HEALTH LLP"]
[null,null,null,null,null,null,null,null,null,null,null,null,null,null,null,null,null,"IS1","NEQ","PHOENIX HEALTH SOLUTIONS LIMITED HQ",null,null,"NEQ","PHOENIX HEALTH SOLUTIONS LIMITED HQ"]
[null,null,null,null,null,null,null,null,null,null,null,null,null,null,null,null,null,"IS1","NEY","PIONEER HEALTHCARE LIMITED",null,null,"NEY","PIONEER HEALTHCARE LIMITED"]
[null,null,null,null,null,null,null,null,null,null,null,null,null,null,null,null,null,"IS1","NTP13","PRACTICE PLUS GROUP HOSPITAL - BARLBOROUGH",null,null,"NTP13","PRACTICE PLUS GROUP HOSPITAL - BARLBOROUGH"]
[null,null,null,null,null,null,null,null,null,null,null,null,null,null,null,null,null,"IS1","NTPH2","PRACTICE PLUS GROUP HOSPITAL - EMERSONS GREEN",null,null,"NTPH2","PRACTICE PLUS GROUP HOSPITAL - EMERSONS GREEN"]
[null,null,null,null,null,null,null,null,null,null,null,null,null,null,null,null,null,"IS1","NTP15","PRACTICE PLUS GROUP HOSPITAL - ILFORD",null,null,"NTP15","PRACTICE PLUS GROUP HOSPITAL - ILFORD"]
[null,null,null,null,null,null,null,null,null,null,null,null,null,null,null,null,null,"IS1","NTPH5","PRACTICE PLUS GROUP HOSPITAL - PLYMOUTH",null,null,"NTPH5","PRACTICE PLUS GROUP HOSPITAL - PLYMOUTH"]
[null,null,null,null,null,null,null,null,null,null,null,null,null,null,null,null,null,"IS1","NTPH1","PRACTICE PLUS GROUP HOSPITAL - SHEPTON MALLET",null,null,"NTPH1","PRACTICE PLUS GROUP HOSPITAL - SHEPTON MALLET"]
[null,null,null,null,null,null,null,null,null,null,null,null,null,null,null,null,null,"IS1","NTP11","PRACTICE PLUS GROUP HOSPITAL - SOUTHAMPTON",null,null,"NTP11","PRACTICE PLUS GROUP HOSPITAL - SOUTHAMPTON"]
[null,null,null,null,null,null,null,null,null,null,null,null,null,null,null,null,null,"IS1","NTPAE","PRACTICE PLUS GROUP OPHTHALMOLOGY - NORTH WEST",null,null,"NTPAE","PRACTICE PLUS GROUP OPHTHALMOLOGY - NORTH WEST"]
[null,null,null,null,null,null,null,null,null,null,null,null,null,null,null,null,null,"IS1","NTPAD","PRACTICE PLUS GROUP SURGICAL CENTRE - ST MARYS PORTSMOUTH",null,null,"NTPAD","PRACTICE PLUS GROUP SURGICAL CENTRE - ST MARYS PORTSMOUTH"]
[null,null,null,null,null,null,null,null,null,null,null,null,null,null,null,null,null,"IS1","NAM","PROBUS SURGERY LIMITED",null,null,"NAM","PROBUS SURGERY LIMITED"]
[null,null,null,null,null,null,null,null,null,null,null,null,null,null,null,null,null,"IS1","NVC","RAMSAY HEALTHCARE UK OPERATIONS LIMITED",null,null,"NVC","RAMSAY HEALTHCARE UK OPERATIONS LIMITED"]
[null,null,null,null,null,null,null,null,null,null,null,null,null,null,null,null,null,"IS1","NT3","SPIRE HEALTHCARE",null,null,"NT3","SPIRE HEALTHCARE"]
[null,null,null,null,null,null,null,null,null,null,null,null,null,null,null,null,null,"IS1","AAH","TETBURY HOSPITAL TRUST LTD",null,null,"AAH","TETBURY HOSPITAL TRUST LTD"]
[null,null,null,null,null,null,null,null,null,null,null,null,null,null,null,null,null,"IS1","NQT","VIRGIN CARE LTD",null,null,"NQT","VIRGIN CARE LTD"]
[null,null,null,null,null,null,null,null,null,null,null,null,null,null,null,null,null,"IS1","NDA","VIRGIN CARE SERVICES LTD",null,null,"NDA","VIRGIN CARE SERVICES LTD"]